Workbook

Sheet База
A1: Калькулятор
A2: Проводка ремонта | B2: 54% | C2: 16
A3: 1 | B3: =(B2*100-C2+A3*10)/100 -> 0.48 | C3: =C2+A3 -> 17
A4: 2 | B4: =(B3*100-C3+A4*10)/100 -> 0.51 | C4: =C3+A4 -> 19
B5: =(B4*100-C4+A5*10)/100 -> 0.32 | C5: =C4+A5 -> 19
A7: От | B7: До | C7: № события | D7: 1-6 | E7: № действия | F7: % износа | G7: Количество ремонтов | H7: Уник | I7: Есть в униках?
A8: 2016-03-14T01:01:23 | B8: 2016-03-14T16:10:21 | C8: Событие1 | D8: №3 | E8: действие1 | F8: 0.54 | G8: 16 | H8: =База[[#This Row],[№ события]]&База[[#This Row],[ 1-6]]&База[[#This Row],[№ действия]] -> Событие1№3действие1 | I8: =AND(VLOOKUP(База[[#This Row],[Уник]],Уникальные[],2,FALSE)<>0,VLOOKUP(База[[#This Row],[Уник]],Уникальные[],3,FALSE)<>0) -> TRUE
A9: 2016-03-14T01:18:14 | B9: 2016-03-14T01:25:43 | C9: Событие2 | D9: №3 | E9: действие2 | F9: 0.61 | G9: 24 | H9: =База[[#This Row],[№ события]]&База[[#This Row],[ 1-6]]&База[[#This Row],[№ действия]] -> Событие2№3действие2 | I9: =AND(VLOOKUP(База[[#This Row],[Уник]],Уникальные[],2,FALSE)<>0,VLOOKUP(База[[#This Row],[Уник]],Уникальные[],3,FALSE)<>0) -> FALSE
A10: 2016-03-14T01:26:29 | B10: 2016-03-14T16:11:29 | C10: Событие3 | D10: №1 | E10: действие3 | F10: 0.37 | G10: 27 | H10: =База[[#This Row],[№ события]]&База[[#This Row],[ 1-6]]&База[[#This Row],[№ действия]] -> Событие3№1действие3 | I10: =AND(VLOOKUP(База[[#This Row],[Уник]],Уникальные[],2,FALSE)<>0,VLOOKUP(База[[#This Row],[Уник]],Уникальные[],3,FALSE)<>0) -> FALSE
A11: 2016-03-14T01:26:37 | B11: 2016-03-14T12:29:34 | C11: Событие3 | D11: №2 | E11: действие4 | F11: 0.87 | G11: 13 | H11: =База[[#This Row],[№ события]]&База[[#This Row],[ 1-6]]&База[[#This Row],[№ действия]] -> Событие3№2действие4 | I11: =AND(VLOOKUP(База[[#This Row],[Уник]],Уникальные[],2,FALSE)<>0,VLOOKUP(База[[#This Row],[Уник]],Уникальные[],3,FALSE)<>0) -> FALSE
A12: 2016-03-14T01:27:08 | B12: 2016-03-14T19:36:22 | C12: Событие4 | D12: №2 | E12: действие5 | F12: 1 | G12: 9 | H12: =База[[#This Row],[№ события]]&База[[#This Row],[ 1-6]]&База[[#This Row],[№ действия]] -> Событие4№2действие5 | I12: =AND(VLOOKUP(База[[#This Row],[Уник]],Уникальные[],2,FALSE)<>0,VLOOKUP(База[[#This Row],[Уник]],Уникальные[],3,FALSE)<>0) -> FALSE
A13: 2016-03-14T01:27:16 | B13: 2016-03-14T19:36:30 | C13: Событие4 | D13: №3 | E13: действие6 | F13: 0.84 | G13: 16 | H13: =База[[#This Row],[№ события]]&База[[#This Row],[ 1-6]]&База[[#This Row],[№ действия]] -> Событие4№3действие6 | I13: =AND(VLOOKUP(База[[#This Row],[Уник]],Уникальные[],2,FALSE)<>0,VLOOKUP(База[[#This Row],[Уник]],Уникальные[],3,FALSE)<>0) -> FALSE
A14: 2016-03-14T01:27:29 | B14: 2016-03-14T16:12:35 | C14: Событие4 | D14: №6 | E14: действие7 | F14: 0.56 | G14: 24 | H14: =База[[#This Row],[№ события]]&База[[#This Row],[ 1-6]]&База[[#This Row],[№ действия]] -> Событие4№6действие7 | I14: =AND(VLOOKUP(База[[#This Row],[Уник]],Уникальные[],2,FALSE)<>0,VLOOKUP(База[[#This Row],[Уник]],Уникальные[],3,FALSE)<>0) -> FALSE
A15: 2016-03-14T01:29:34 | B15: 2016-03-14T19:37:14 | C15: Событие5 | D15: №5 | E15: действие8 | F15: 0.56 | G15: 24 | H15: =База[[#This Row],[№ события]]&База[[#This Row],[ 1-6]]&База[[#This Row],[№ действия]] -> Событие5№5действие8 | I15: =AND(VLOOKUP(База[[#This Row],[Уник]],Уникальные[],2,FALSE)<>0,VLOOKUP(База[[#This Row],[Уник]],Уникальные[],3,FALSE)<>0) -> FALSE
A16: 2016-03-14T01:29:43 | B16: 2016-03-14T18:43:31 | C16: Событие5 | D16: №6 | E16: действие9 | F16: 0.54 | G16: 15 | H16: =База[[#This Row],[№ события]]&База[[#This Row],[ 1-6]]&База[[#This Row],[№ действия]] -> Событие5№6действие9 | I16: =AND(VLOOKUP(База[[#This Row],[Уник]],Уникальные[],2,FALSE)<>0,VLOOKUP(База[[#This Row],[Уник]],Уникальные[],3,FALSE)<>0) -> FALSE
A17: 2016-03-14T01:32:59 | B17: 2016-03-14T18:43:57 | C17: Событие6 | D17: №5 | E17: действие10 | F17: 1 | G17: 7 | H17: =База[[#This Row],[№ события]]&База[[#This Row],[ 1-6]]&База[[#This Row],[№ действия]] -> Событие6№5действие10 | I17: =AND(VLOOKUP(База[[#This Row],[Уник]],Уникальные[],2,FALSE)<>0,VLOOKUP(База[[#This Row],[Уник]],Уникальные[],3,FALSE)<>0) -> FALSE
A18: 2016-03-14T01:35:36 | B18: 2016-03-14T19:38:24 | C18: Событие7 | D18: №6 | E18: действие11 | F18: 1 | G18: 9 | H18: =База[[#This Row],[№ события]]&База[[#This Row],[ 1-6]]&База[[#This Row],[№ действия]] -> Событие7№6действие11 | I18: =AND(VLOOKUP(База[[#This Row],[Уник]],Уникальные[],2,FALSE)<>0,VLOOKUP(База[[#This Row],[Уник]],Уникальные[],3,FALSE)<>0) -> FALSE
A19: 2016-03-14T01:36:04 | B19: 2016-03-14T19:38:51 | C19: Событие8 | D19: №1 | E19: действие12 | F19: 0.42 | G19: 10 | H19: =База[[#This Row],[№ события]]&База[[#This Row],[ 1-6]]&База[[#This Row],[№ действия]] -> Событие8№1действие12 | I19: =AND(VLOOKUP(База[[#This Row],[Уник]],Уникальные[],2,FALSE)<>0,VLOOKUP(База[[#This Row],[Уник]],Уникальные[],3,FALSE)<>0) -> FALSE
A20: 2016-03-14T01:36:36 | B20: 2016-03-14T06:18:23 | C20: Событие9 | D20: №1 | E20: действие13 | F20: 0.82 | G20: 18 | H20: =База[[#This Row],[№ события]]&База[[#This Row],[ 1-6]]&База[[#This Row],[№ действия]] -> Событие9№1действие13 | I20: =AND(VLOOKUP(База[[#This Row],[Уник]],Уникальные[],2,FALSE)<>0,VLOOKUP(База[[#This Row],[Уник]],Уникальные[],3,FALSE)<>0) -> FALSE
A21: 2016-03-14T01:36:49 | B21: 2016-03-14T11:51:08 | C21: Событие9 | D21: №6 | E21: действие14 | F21: 0.45 | G21: 11 | H21: =База[[#This Row],[№ события]]&База[[#This Row],[ 1-6]]&База[[#This Row],[№ действия]] -> Событие9№6действие14 | I21: =AND(VLOOKUP(База[[#This Row],[Уник]],Уникальные[],2,FALSE)<>0,VLOOKUP(База[[#This Row],[Уник]],Уникальные[],3,FALSE)<>0) -> FALSE
A22: 2016-03-14T01:37:22 | B22: 2016-03-14T16:16:06 | C22: Событие10 | D22: №6 | E22: действие15 | F22: 0.5 | G22: 16 | H22: =База[[#This Row],[№ события]]&База[[#This Row],[ 1-6]]&База[[#This Row],[№ действия]] -> Событие10№6действие15 | I22: =AND(VLOOKUP(База[[#This Row],[Уник]],Уникальные[],2,FALSE)<>0,VLOOKUP(База[[#This Row],[Уник]],Уникальные[],3,FALSE)<>0) -> FALSE
A23: 2016-03-14T01:38:34 | B23: 2016-03-14T01:38:34 | C23: Событие11 | D23: №6 | E23: действие16 | F23: 0.38 | G23: 22 | H23: =База[[#This Row],[№ события]]&База[[#This Row],[ 1-6]]&База[[#This Row],[№ действия]] -> Событие11№6действие16 | I23: =AND(VLOOKUP(База[[#This Row],[Уник]],Уникальные[],2,FALSE)<>0,VLOOKUP(База[[#This Row],[Уник]],Уникальные[],3,FALSE)<>0) -> FALSE
A24: 2016-03-14T01:39:38 | B24: 2016-03-14T16:17:03 | C24: Событие12 | D24: №1 | E24: действие17 | F24: 0.65 | G24: 21 | H24: =База[[#This Row],[№ события]]&База[[#This Row],[ 1-6]]&База[[#This Row],[№ действия]] -> Событие12№1действие17 | I24: =AND(VLOOKUP(База[[#This Row],[Уник]],Уникальные[],2,FALSE)<>0,VLOOKUP(База[[#This Row],[Уник]],Уникальные[],3,FALSE)<>0) -> FALSE
A25: 2016-03-14T01:39:48 | B25: 2016-03-14T11:07:48 | C25: Событие12 | D25: №6 | E25: действие18 | F25: 0.55 | G25: 19 | H25: =База[[#This Row],[№ события]]&База[[#This Row],[ 1-6]]&База[[#This Row],[№ действия]] -> Событие12№6действие18 | I25: =AND(VLOOKUP(База[[#This Row],[Уник]],Уникальные[],2,FALSE)<>0,VLOOKUP(База[[#This Row],[Уник]],Уникальные[],3,FALSE)<>0) -> FALSE
A26: 2016-03-14T01:40:17 | B26: 2016-03-14T16:17:43 | C26: Событие13 | D26: №3 | E26: действие19 | F26: 0.76 | G26: 8 | H26: =База[[#This Row],[№ события]]&База[[#This Row],[ 1-6]]&База[[#This Row],[№ действия]] -> Событие13№3действие19 | I26: =AND(VLOOKUP(База[[#This Row],[Уник]],Уникальные[],2,FALSE)<>0,VLOOKUP(База[[#This Row],[Уник]],Уникальные[],3,FALSE)<>0) -> FALSE
A27: 2016-03-14T01:40:57 | B27: 2016-03-14T15:33:05 | C27: Событие14 | D27: №1 | E27: действие20 | F27: 0.42 | G27: 10 | H27: =База[[#This Row],[№ события]]&База[[#This Row],[ 1-6]]&База[[#This Row],[№ действия]] -> Событие14№1действие20 | I27: =AND(VLOOKUP(База[[#This Row],[Уник]],Уникальные[],2,FALSE)<>0,VLOOKUP(База[[#This Row],[Уник]],Уникальные[],3,FALSE)<>0) -> FALSE
A28: 2016-03-14T01:41:16 | B28: 2016-03-14T01:41:16 | C28: Событие14 | D28: №6 | E28: действие13 | F28: 0.86 | G28: 7 | H28: =База[[#This Row],[№ события]]&База[[#This Row],[ 1-6]]&База[[#This Row],[№ действия]] -> Событие14№6действие13 | I28: =AND(VLOOKUP(База[[#This Row],[Уник]],Уникальные[],2,FALSE)<>0,VLOOKUP(База[[#This Row],[Уник]],Уникальные[],3,FALSE)<>0) -> FALSE
A29: 2016-03-14T01:42:05 | B29: 2016-03-14T01:42:05 | C29: Событие15 | D29: №4 | E29: действие21 | F29: 0.47 | G29: 25 | H29: =База[[#This Row],[№ события]]&База[[#This Row],[ 1-6]]&База[[#This Row],[№ действия]] -> Событие15№4действие21 | I29: =AND(VLOOKUP(База[[#This Row],[Уник]],Уникальные[],2,FALSE)<>0,VLOOKUP(База[[#This Row],[Уник]],Уникальные[],3,FALSE)<>0) -> FALSE
A30: 2016-03-14T01:42:17 | B30: 2016-03-14T01:42:17 | C30: Событие15 | D30: №5 | E30: действие11 | F30: 0.52 | G30: 16 | H30: =База[[#This Row],[№ события]]&База[[#This Row],[ 1-6]]&База[[#This Row],[№ действия]] -> Событие15№5действие11 | I30: =AND(VLOOKUP(База[[#This Row],[Уник]],Уникальные[],2,FALSE)<>0,VLOOKUP(База[[#This Row],[Уник]],Уникальные[],3,FALSE)<>0) -> FALSE
A31: 2016-03-14T01:42:47 | B31: 2016-03-14T01:42:47 | C31: Событие16 | D31: №5 | E31: действие22 | F31: 1 | G31: 7 | H31: =База[[#This Row],[№ события]]&База[[#This Row],[ 1-6]]&База[[#This Row],[№ действия]] -> Событие16№5действие22 | I31: =AND(VLOOKUP(База[[#This Row],[Уник]],Уникальные[],2,FALSE)<>0,VLOOKUP(База[[#This Row],[Уник]],Уникальные[],3,FALSE)<>0) -> FALSE
A32: 2016-03-14T01:43:38 | B32: 2016-03-14T15:35:01 | C32: Событие17 | D32: №3 | E32: действие23 | F32: 1 | G32: 17 | H32: =База[[#This Row],[№ события]]&База[[#This Row],[ 1-6]]&База[[#This Row],[№ действия]] -> Событие17№3действие23 | I32: =AND(VLOOKUP(База[[#This Row],[Уник]],Уникальные[],2,FALSE)<>0,VLOOKUP(База[[#This Row],[Уник]],Уникальные[],3,FALSE)<>0) -> FALSE
A33: 2016-03-14T01:44:55 | B33: 2016-03-14T19:36:29 | C33: Событие18 | D33: №5 | E33: действие24 | F33: 0.31 | G33: 8 | H33: =База[[#This Row],[№ события]]&База[[#This Row],[ 1-6]]&База[[#This Row],[№ действия]] -> Событие18№5действие24 | I33: =AND(VLOOKUP(База[[#This Row],[Уник]],Уникальные[],2,FALSE)<>0,VLOOKUP(База[[#This Row],[Уник]],Уникальные[],3,FALSE)<>0) -> FALSE
A34: 2016-03-14T01:45:02 | B34: 2016-03-14T18:51:34 | C34: Событие18 | D34: №6 | E34: действие25 | F34: 0.37 | G34: 7 | H34: =База[[#This Row],[№ события]]&База[[#This Row],[ 1-6]]&База[[#This Row],[№ действия]] -> Событие18№6действие25 | I34: =AND(VLOOKUP(База[[#This Row],[Уник]],Уникальные[],2,FALSE)<>0,VLOOKUP(База[[#This Row],[Уник]],Уникальные[],3,FALSE)<>0) -> FALSE
A35: 2016-03-14T01:45:32 | B35: 2016-03-14T09:39:35 | C35: Событие19 | D35: №3 | E35: действие26 | F35: 0.56 | G35: 23 | H35: =База[[#This Row],[№ события]]&База[[#This Row],[ 1-6]]&База[[#This Row],[№ действия]] -> Событие19№3действие26 | I35: =AND(VLOOKUP(База[[#This Row],[Уник]],Уникальные[],2,FALSE)<>0,VLOOKUP(База[[#This Row],[Уник]],Уникальные[],3,FALSE)<>0) -> FALSE
A36: 2016-03-14T01:45:43 | B36: 2016-03-14T19:37:10 | C36: Событие19 | D36: №6 | E36: действие27 | F36: 0.72 | G36: 7 | H36: =База[[#This Row],[№ события]]&База[[#This Row],[ 1-6]]&База[[#This Row],[№ действия]] -> Событие19№6действие27 | I36: =AND(VLOOKUP(База[[#This Row],[Уник]],Уникальные[],2,FALSE)<>0,VLOOKUP(База[[#This Row],[Уник]],Уникальные[],3,FALSE)<>0) -> FALSE
A37: 2016-03-14T01:47:11 | B37: 2016-03-14T06:25:01 | C37: Событие20 | D37: №3 | E37: действие2 | F37: 0.52 | G37: 14 | H37: =База[[#This Row],[№ события]]&База[[#This Row],[ 1-6]]&База[[#This Row],[№ действия]] -> Событие20№3действие2 | I37: =AND(VLOOKUP(База[[#This Row],[Уник]],Уникальные[],2,FALSE)<>0,VLOOKUP(База[[#This Row],[Уник]],Уникальные[],3,FALSE)<>0) -> FALSE
A38: 2016-03-14T01:47:20 | B38: 2016-03-14T19:37:45 | C38: Событие20 | D38: №6 | E38: действие16 | F38: 0.55 | G38: 22 | H38: =База[[#This Row],[№ события]]&База[[#This Row],[ 1-6]]&База[[#This Row],[№ действия]] -> Событие20№6действие16 | I38: =AND(VLOOKUP(База[[#This Row],[Уник]],Уникальные[],2,FALSE)<>0,VLOOKUP(База[[#This Row],[Уник]],Уникальные[],3,FALSE)<>0) -> FALSE
A39: 2016-03-14T01:47:45 | B39: 2016-03-14T07:19:06 | C39: Событие21 | D39: №6 | E39: действие28 | F39: 0.58 | G39: 20 | H39: =База[[#This Row],[№ события]]&База[[#This Row],[ 1-6]]&База[[#This Row],[№ действия]] -> Событие21№6действие28 | I39: =AND(VLOOKUP(База[[#This Row],[Уник]],Уникальные[],2,FALSE)<>0,VLOOKUP(База[[#This Row],[Уник]],Уникальные[],3,FALSE)<>0) -> FALSE
A40: 2016-03-14T01:48:12 | B40: 2016-03-14T15:37:54 | C40: Событие22 | D40: №3 | E40: действие29 | F40: 0.38 | G40: 29 | H40: =База[[#This Row],[№ события]]&База[[#This Row],[ 1-6]]&База[[#This Row],[№ действия]] -> Событие22№3действие29 | I40: =AND(VLOOKUP(База[[#This Row],[Уник]],Уникальные[],2,FALSE)<>0,VLOOKUP(База[[#This Row],[Уник]],Уникальные[],3,FALSE)<>0) -> FALSE
A41: 2016-03-14T01:48:20 | B41: 2016-03-14T16:22:39 | C41: Событие22 | D41: №4 | E41: действие30 | F41: 0.51 | G41: 19 | H41: =База[[#This Row],[№ события]]&База[[#This Row],[ 1-6]]&База[[#This Row],[№ действия]] -> Событие22№4действие30 | I41: =AND(VLOOKUP(База[[#This Row],[Уник]],Уникальные[],2,FALSE)<>0,VLOOKUP(База[[#This Row],[Уник]],Уникальные[],3,FALSE)<>0) -> FALSE
A42: 2016-03-14T01:48:28 | B42: 2016-03-14T06:26:21 | C42: Событие22 | D42: №5 | E42: действие31 | F42: 0.58 | G42: 7 | H42: =База[[#This Row],[№ события]]&База[[#This Row],[ 1-6]]&База[[#This Row],[№ действия]] -> Событие22№5действие31 | I42: =AND(VLOOKUP(База[[#This Row],[Уник]],Уникальные[],2,FALSE)<>0,VLOOKUP(База[[#This Row],[Уник]],Уникальные[],3,FALSE)<>0) -> FALSE
A43: 2016-03-14T01:48:57 | B43: 2016-03-14T14:10:33 | C43: Событие23 | D43: №3 | E43: действие17 | F43: 0.65 | G43: 7 | H43: =База[[#This Row],[№ события]]&База[[#This Row],[ 1-6]]&База[[#This Row],[№ действия]] -> Событие23№3действие17 | I43: =AND(VLOOKUP(База[[#This Row],[Уник]],Уникальные[],2,FALSE)<>0,VLOOKUP(База[[#This Row],[Уник]],Уникальные[],3,FALSE)<>0) -> FALSE
A44: 2016-03-14T01:49:05 | B44: 2016-03-14T19:39:40 | C44: Событие23 | D44: №4 | E44: действие32 | F44: 0.51 | G44: 7 | H44: =База[[#This Row],[№ события]]&База[[#This Row],[ 1-6]]&База[[#This Row],[№ действия]] -> Событие23№4действие32 | I44: =AND(VLOOKUP(База[[#This Row],[Уник]],Уникальные[],2,FALSE)<>0,VLOOKUP(База[[#This Row],[Уник]],Уникальные[],3,FALSE)<>0) -> FALSE
A45: 2016-03-14T01:49:36 | B45: 2016-03-14T01:49:36 | C45: Событие24 | D45: №3 | E45: действие17 | F45: 0.65 | G45: 7 | H45: =База[[#This Row],[№ события]]&База[[#This Row],[ 1-6]]&База[[#This Row],[№ действия]] -> Событие24№3действие17 | I45: =AND(VLOOKUP(База[[#This Row],[Уник]],Уникальные[],2,FALSE)<>0,VLOOKUP(База[[#This Row],[Уник]],Уникальные[],3,FALSE)<>0) -> FALSE
A46: 2016-03-14T01:49:44 | B46: 2016-03-14T01:49:44 | C46: Событие24 | D46: №4 | E46: действие32 | F46: 0.51 | G46: 7 | H46: =База[[#This Row],[№ события]]&База[[#This Row],[ 1-6]]&База[[#This Row],[№ действия]] -> Событие24№4действие32 | I46: =AND(VLOOKUP(База[[#This Row],[Уник]],Уникальные[],2,FALSE)<>0,VLOOKUP(База[[#This Row],[Уник]],Уникальные[],3,FALSE)<>0) -> FALSE
A47: 2016-03-14T01:51:13 | B47: 2016-03-14T14:55:56 | C47: Событие25 | D47: №3 | E47: действие33 | F47: 0.42 | G47: 11 | H47: =База[[#This Row],[№ события]]&База[[#This Row],[ 1-6]]&База[[#This Row],[№ действия]] -> Событие25№3действие33 | I47: =AND(VLOOKUP(База[[#This Row],[Уник]],Уникальные[],2,FALSE)<>0,VLOOKUP(База[[#This Row],[Уник]],Уникальные[],3,FALSE)<>0) -> FALSE
A48: 2016-03-14T01:51:22 | B48: 2016-03-14T07:14:54 | C48: Событие25 | D48: №4 | E48: действие20 | F48: 0.79 | G48: 7 | H48: =База[[#This Row],[№ события]]&База[[#This Row],[ 1-6]]&База[[#This Row],[№ действия]] -> Событие25№4действие20 | I48: =AND(VLOOKUP(База[[#This Row],[Уник]],Уникальные[],2,FALSE)<>0,VLOOKUP(База[[#This Row],[Уник]],Уникальные[],3,FALSE)<>0) -> FALSE
A49: 2016-03-14T01:52:48 | B49: 2016-03-14T19:41:27 | C49: Событие26 | D49: №1 | E49: действие34 | F49: 0.39 | G49: 8 | H49: =База[[#This Row],[№ события]]&База[[#This Row],[ 1-6]]&База[[#This Row],[№ действия]] -> Событие26№1действие34 | I49: =AND(VLOOKUP(База[[#This Row],[Уник]],Уникальные[],2,FALSE)<>0,VLOOKUP(База[[#This Row],[Уник]],Уникальные[],3,FALSE)<>0) -> FALSE
A50: 2016-03-14T01:53:21 | B50: 2016-03-14T16:25:35 | C50: Событие27 | D50: №1 | E50: действие35 | F50: 0.4 | G50: 9 | H50: =База[[#This Row],[№ события]]&База[[#This Row],[ 1-6]]&База[[#This Row],[№ действия]] -> Событие27№1действие35 | I50: =AND(VLOOKUP(База[[#This Row],[Уник]],Уникальные[],2,FALSE)<>0,VLOOKUP(База[[#This Row],[Уник]],Уникальные[],3,FALSE)<>0) -> FALSE
A51: 2016-03-14T01:53:51 | B51: 2016-03-14T01:53:51 | C51: Событие27 | D51: №6 | E51: действие6 | F51: 0.58 | G51: 7 | H51: =База[[#This Row],[№ события]]&База[[#This Row],[ 1-6]]&База[[#This Row],[№ действия]] -> Событие27№6действие6 | I51: =AND(VLOOKUP(База[[#This Row],[Уник]],Уникальные[],2,FALSE)<>0,VLOOKUP(База[[#This Row],[Уник]],Уникальные[],3,FALSE)<>0) -> FALSE
A52: 2016-03-14T01:54:19 | B52: 2016-03-14T19:42:37 | C52: Событие28 | D52: №3 | E52: действие30 | F52: 0.47 | G52: 11 | H52: =База[[#This Row],[№ события]]&База[[#This Row],[ 1-6]]&База[[#This Row],[№ действия]] -> Событие28№3действие30 | I52: =AND(VLOOKUP(База[[#This Row],[Уник]],Уникальные[],2,FALSE)<>0,VLOOKUP(База[[#This Row],[Уник]],Уникальные[],3,FALSE)<>0) -> FALSE
A53: 2016-03-14T01:55:57 | B53: 2016-03-14T01:55:57 | C53: Событие29 | D53: №1 | E53: действие36 | F53: 0.78 | G53: 11 | H53: =База[[#This Row],[№ события]]&База[[#This Row],[ 1-6]]&База[[#This Row],[№ действия]] -> Событие29№1действие36 | I53: =AND(VLOOKUP(База[[#This Row],[Уник]],Уникальные[],2,FALSE)<>0,VLOOKUP(База[[#This Row],[Уник]],Уникальные[],3,FALSE)<>0) -> FALSE
A54: 2016-03-14T01:56:05 | B54: 2016-03-14T19:43:26 | C54: Событие29 | D54: №2 | E54: действие18 | F54: 0.52 | G54: 17 | H54: =База[[#This Row],[№ события]]&База[[#This Row],[ 1-6]]&База[[#This Row],[№ действия]] -> Событие29№2действие18 | I54: =AND(VLOOKUP(База[[#This Row],[Уник]],Уникальные[],2,FALSE)<>0,VLOOKUP(База[[#This Row],[Уник]],Уникальные[],3,FALSE)<>0) -> FALSE
A55: 2016-03-14T01:56:12 | B55: 2016-03-14T01:56:12 | C55: Событие29 | D55: №6 | E55: действие37 | F55: 0.55 | G55: 22 | H55: =База[[#This Row],[№ события]]&База[[#This Row],[ 1-6]]&База[[#This Row],[№ действия]] -> Событие29№6действие37 | I55: =AND(VLOOKUP(База[[#This Row],[Уник]],Уникальные[],2,FALSE)<>0,VLOOKUP(База[[#This Row],[Уник]],Уникальные[],3,FALSE)<>0) -> FALSE
A56: 2016-03-14T01:56:38 | B56: 2016-03-14T01:56:38 | C56: Событие30 | D56: №5 | E56: действие36 | F56: 0.31 | G56: 26 | H56: =База[[#This Row],[№ события]]&База[[#This Row],[ 1-6]]&База[[#This Row],[№ действия]] -> Событие30№5действие36 | I56: =AND(VLOOKUP(База[[#This Row],[Уник]],Уникальные[],2,FALSE)<>0,VLOOKUP(База[[#This Row],[Уник]],Уникальные[],3,FALSE)<>0) -> FALSE
A57: 2016-03-14T01:56:46 | B57: 2016-03-14T01:56:46 | C57: Событие30 | D57: №6 | E57: действие38 | F57: 0.57 | G57: 26 | H57: =База[[#This Row],[№ события]]&База[[#This Row],[ 1-6]]&База[[#This Row],[№ действия]] -> Событие30№6действие38 | I57: =AND(VLOOKUP(База[[#This Row],[Уник]],Уникальные[],2,FALSE)<>0,VLOOKUP(База[[#This Row],[Уник]],Уникальные[],3,FALSE)<>0) -> FALSE
A58: 2016-03-14T01:57:14 | B58: 2016-03-14T08:06:31 | C58: Событие31 | D58: №2 | E58: действие39 | F58: 0.86 | G58: 7 | H58: =База[[#This Row],[№ события]]&База[[#This Row],[ 1-6]]&База[[#This Row],[№ действия]] -> Событие31№2действие39 | I58: =AND(VLOOKUP(База[[#This Row],[Уник]],Уникальные[],2,FALSE)<>0,VLOOKUP(База[[#This Row],[Уник]],Уникальные[],3,FALSE)<>0) -> FALSE
A59: 2016-03-14T01:57:23 | B59: 2016-03-14T19:44:47 | C59: Событие31 | D59: №4 | E59: действие40 | F59: 0.58 | G59: 7 | H59: =База[[#This Row],[№ события]]&База[[#This Row],[ 1-6]]&База[[#This Row],[№ действия]] -> Событие31№4действие40 | I59: =AND(VLOOKUP(База[[#This Row],[Уник]],Уникальные[],2,FALSE)<>0,VLOOKUP(База[[#This Row],[Уник]],Уникальные[],3,FALSE)<>0) -> FALSE
A60: 2016-03-14T01:58:09 | B60: 2016-03-14T19:45:15 | C60: Событие32 | D60: №3 | E60: действие29 | F60: 0.64 | G60: 12 | H60: =База[[#This Row],[№ события]]&База[[#This Row],[ 1-6]]&База[[#This Row],[№ действия]] -> Событие32№3действие29 | I60: =AND(VLOOKUP(База[[#This Row],[Уник]],Уникальные[],2,FALSE)<>0,VLOOKUP(База[[#This Row],[Уник]],Уникальные[],3,FALSE)<>0) -> FALSE
A61: 2016-03-14T01:58:18 | B61: 2016-03-14T19:45:25 | C61: Событие32 | D61: №5 | E61: действие13 | F61: 0.79 | G61: 7 | H61: =База[[#This Row],[№ события]]&База[[#This Row],[ 1-6]]&База[[#This Row],[№ действия]] -> Событие32№5действие13 | I61: =AND(VLOOKUP(База[[#This Row],[Уник]],Уникальные[],2,FALSE)<>0,VLOOKUP(База[[#This Row],[Уник]],Уникальные[],3,FALSE)<>0) -> FALSE
A62: 2016-03-14T01:58:43 | B62: 2016-03-14T19:45:53 | C62: Событие33 | D62: №1 | E62: действие41 | F62: 0.56 | G62: 19 | H62: =База[[#This Row],[№ события]]&База[[#This Row],[ 1-6]]&База[[#This Row],[№ действия]] -> Событие33№1действие41 | I62: =AND(VLOOKUP(База[[#This Row],[Уник]],Уникальные[],2,FALSE)<>0,VLOOKUP(База[[#This Row],[Уник]],Уникальные[],3,FALSE)<>0) -> FALSE
A63: 2016-03-14T01:58:59 | B63: 2016-03-14T19:46:06 | C63: Событие33 | D63: №4 | E63: действие42 | F63: 0.63 | G63: 25 | H63: =База[[#This Row],[№ события]]&База[[#This Row],[ 1-6]]&База[[#This Row],[№ действия]] -> Событие33№4действие42 | I63: =AND(VLOOKUP(База[[#This Row],[Уник]],Уникальные[],2,FALSE)<>0,VLOOKUP(База[[#This Row],[Уник]],Уникальные[],3,FALSE)<>0) -> FALSE
A64: 2016-03-14T01:59:32 | B64: 2016-03-14T19:46:43 | C64: Событие34 | D64: №1 | E64: действие34 | F64: 0.93 | G64: 7 | H64: =База[[#This Row],[№ события]]&База[[#This Row],[ 1-6]]&База[[#This Row],[№ действия]] -> Событие34№1действие34 | I64: =AND(VLOOKUP(База[[#This Row],[Уник]],Уникальные[],2,FALSE)<>0,VLOOKUP(База[[#This Row],[Уник]],Уникальные[],3,FALSE)<>0) -> FALSE
A65: 2016-03-14T02:01:13 | B65: 2016-03-14T02:01:13 | C65: Событие35 | D65: №5 | E65: действие43 | F65: 0.33 | G65: 16 | H65: =База[[#This Row],[№ события]]&База[[#This Row],[ 1-6]]&База[[#This Row],[№ действия]] -> Событие35№5действие43 | I65: =AND(VLOOKUP(База[[#This Row],[Уник]],Уникальные[],2,FALSE)<>0,VLOOKUP(База[[#This Row],[Уник]],Уникальные[],3,FALSE)<>0) -> FALSE
A66: 2016-03-14T02:01:41 | B66: 2016-03-14T12:48:25 | C66: Событие36 | D66: №5 | E66: действие36 | F66: 0.44 | G66: 18 | H66: =База[[#This Row],[№ события]]&База[[#This Row],[ 1-6]]&База[[#This Row],[№ действия]] -> Событие36№5действие36 | I66: =AND(VLOOKUP(База[[#This Row],[Уник]],Уникальные[],2,FALSE)<>0,VLOOKUP(База[[#This Row],[Уник]],Уникальные[],3,FALSE)<>0) -> FALSE
A67: 2016-03-14T02:02:07 | B67: 2016-03-14T16:32:01 | C67: Событие37 | D67: №1 | E67: действие44 | F67: 0.48 | G67: 14 | H67: =База[[#This Row],[№ события]]&База[[#This Row],[ 1-6]]&База[[#This Row],[№ действия]] -> Событие37№1действие44 | I67: =AND(VLOOKUP(База[[#This Row],[Уник]],Уникальные[],2,FALSE)<>0,VLOOKUP(База[[#This Row],[Уник]],Уникальные[],3,FALSE)<>0) -> FALSE
A68: 2016-03-14T02:02:15 | B68: 2016-03-14T15:03:30 | C68: Событие37 | D68: №2 | E68: действие36 | F68: 0.51 | G68: 15 | H68: =База[[#This Row],[№ события]]&База[[#This Row],[ 1-6]]&База[[#This Row],[№ действия]] -> Событие37№2действие36 | I68: =AND(VLOOKUP(База[[#This Row],[Уник]],Уникальные[],2,FALSE)<>0,VLOOKUP(База[[#This Row],[Уник]],Уникальные[],3,FALSE)<>0) -> FALSE
A69: 2016-03-14T02:02:26 | B69: 2016-03-14T10:37:26 | C69: Событие37 | D69: №3 | E69: действие45 | F69: 0.67 | G69: 27 | H69: =База[[#This Row],[№ события]]&База[[#This Row],[ 1-6]]&База[[#This Row],[№ действия]] -> Событие37№3действие45 | I69: =AND(VLOOKUP(База[[#This Row],[Уник]],Уникальные[],2,FALSE)<>0,VLOOKUP(База[[#This Row],[Уник]],Уникальные[],3,FALSE)<>0) -> FALSE
A70: 2016-03-14T02:02:41 | B70: 2016-03-14T09:51:30 | C70: Событие37 | D70: №5 | E70: действие46 | F70: 0.57 | G70: 18 | H70: =База[[#This Row],[№ события]]&База[[#This Row],[ 1-6]]&База[[#This Row],[№ действия]] -> Событие37№5действие46 | I70: =AND(VLOOKUP(База[[#This Row],[Уник]],Уникальные[],2,FALSE)<>0,VLOOKUP(База[[#This Row],[Уник]],Уникальные[],3,FALSE)<>0) -> FALSE
A71: 2016-03-14T02:03:30 | B71: 2016-03-14T10:38:12 | C71: Событие38 | D71: №3 | E71: действие22 | F71: 0.54 | G71: 15 | H71: =База[[#This Row],[№ события]]&База[[#This Row],[ 1-6]]&База[[#This Row],[№ действия]] -> Событие38№3действие22 | I71: =AND(VLOOKUP(База[[#This Row],[Уник]],Уникальные[],2,FALSE)<>0,VLOOKUP(База[[#This Row],[Уник]],Уникальные[],3,FALSE)<>0) -> FALSE
A72: 2016-03-14T02:03:38 | B72: 2016-03-14T19:49:24 | C72: Событие38 | D72: №4 | E72: действие47 | F72: 1 | G72: 19 | H72: =База[[#This Row],[№ события]]&База[[#This Row],[ 1-6]]&База[[#This Row],[№ действия]] -> Событие38№4действие47 | I72: =AND(VLOOKUP(База[[#This Row],[Уник]],Уникальные[],2,FALSE)<>0,VLOOKUP(База[[#This Row],[Уник]],Уникальные[],3,FALSE)<>0) -> FALSE
A73: 2016-03-14T02:04:08 | B73: 2016-03-14T16:33:37 | C73: Событие39 | D73: №2 | E73: действие48 | F73: 0.31 | G73: 27 | H73: =База[[#This Row],[№ события]]&База[[#This Row],[ 1-6]]&База[[#This Row],[№ действия]] -> Событие39№2действие48 | I73: =AND(VLOOKUP(База[[#This Row],[Уник]],Уникальные[],2,FALSE)<>0,VLOOKUP(База[[#This Row],[Уник]],Уникальные[],3,FALSE)<>0) -> FALSE
A74: 2016-03-14T02:05:04 | B74: 2016-03-14T19:49:54 | C74: Событие40 | D74: №2 | E74: действие49 | F74: 0.48 | G74: 15 | H74: =База[[#This Row],[№ события]]&База[[#This Row],[ 1-6]]&База[[#This Row],[№ действия]] -> Событие40№2действие49 | I74: =AND(VLOOKUP(База[[#This Row],[Уник]],Уникальные[],2,FALSE)<>0,VLOOKUP(База[[#This Row],[Уник]],Уникальные[],3,FALSE)<>0) -> FALSE
A75: 2016-03-14T02:05:12 | B75: 2016-03-14T02:05:12 | C75: Событие40 | D75: №3 | E75: действие8 | F75: 0.57 | G75: 20 | H75: =База[[#This Row],[№ события]]&База[[#This Row],[ 1-6]]&База[[#This Row],[№ действия]] -> Событие40№3действие8 | I75: =AND(VLOOKUP(База[[#This Row],[Уник]],Уникальные[],2,FALSE)<>0,VLOOKUP(База[[#This Row],[Уник]],Уникальные[],3,FALSE)<>0) -> FALSE
A76: 2016-03-14T02:05:40 | B76: 2016-03-14T16:34:44 | C76: Событие41 | D76: №2 | E76: действие21 | F76: 0.38 | G76: 23 | H76: =База[[#This Row],[№ события]]&База[[#This Row],[ 1-6]]&База[[#This Row],[№ действия]] -> Событие41№2действие21 | I76: =AND(VLOOKUP(База[[#This Row],[Уник]],Уникальные[],2,FALSE)<>0,VLOOKUP(База[[#This Row],[Уник]],Уникальные[],3,FALSE)<>0) -> FALSE
A77: 2016-03-14T01:59:01 | B77: 2016-03-14T16:35:15 | C77: Событие42 | D77: №2 | E77: действие50 | F77: 0.62 | G77: 25 | H77: =База[[#This Row],[№ события]]&База[[#This Row],[ 1-6]]&База[[#This Row],[№ действия]] -> Событие42№2действие50 | I77: =AND(VLOOKUP(База[[#This Row],[Уник]],Уникальные[],2,FALSE)<>0,VLOOKUP(База[[#This Row],[Уник]],Уникальные[],3,FALSE)<>0) -> FALSE
A78: 2016-03-14T02:00:40 | B78: 2016-03-14T14:13:41 | C78: Событие43 | D78: №1 | E78: действие38 | F78: 0.92 | G78: 8 | H78: =База[[#This Row],[№ события]]&База[[#This Row],[ 1-6]]&База[[#This Row],[№ действия]] -> Событие43№1действие38 | I78: =AND(VLOOKUP(База[[#This Row],[Уник]],Уникальные[],2,FALSE)<>0,VLOOKUP(База[[#This Row],[Уник]],Уникальные[],3,FALSE)<>0) -> FALSE
A79: 2016-03-14T02:00:57 | B79: 2016-03-14T16:36:07 | C79: Событие43 | D79: №3 | E79: действие24 | F79: 0.47 | G79: 13 | H79: =База[[#This Row],[№ события]]&База[[#This Row],[ 1-6]]&База[[#This Row],[№ действия]] -> Событие43№3действие24 | I79: =AND(VLOOKUP(База[[#This Row],[Уник]],Уникальные[],2,FALSE)<>0,VLOOKUP(База[[#This Row],[Уник]],Уникальные[],3,FALSE)<>0) -> FALSE
A80: 2016-03-14T02:01:05 | B80: 2016-03-14T02:01:05 | C80: Событие43 | D80: №4 | E80: действие51 | F80: 0.58 | G80: 19 | H80: =База[[#This Row],[№ события]]&База[[#This Row],[ 1-6]]&База[[#This Row],[№ действия]] -> Событие43№4действие51 | I80: =AND(VLOOKUP(База[[#This Row],[Уник]],Уникальные[],2,FALSE)<>0,VLOOKUP(База[[#This Row],[Уник]],Уникальные[],3,FALSE)<>0) -> FALSE
A81: 2016-03-14T02:01:13 | B81: 2016-03-14T19:51:31 | C81: Событие43 | D81: №6 | E81: действие52 | F81: 0.47 | G81: 13 | H81: =База[[#This Row],[№ события]]&База[[#This Row],[ 1-6]]&База[[#This Row],[№ действия]] -> Событие43№6действие52 | I81: =AND(VLOOKUP(База[[#This Row],[Уник]],Уникальные[],2,FALSE)<>0,VLOOKUP(База[[#This Row],[Уник]],Уникальные[],3,FALSE)<>0) -> FALSE
A82: 2016-03-14T02:01:39 | B82: 2016-03-14T19:51:59 | C82: Событие44 | D82: №2 | E82: действие6 | F82: 0.55 | G82: 15 | H82: =База[[#This Row],[№ события]]&База[[#This Row],[ 1-6]]&База[[#This Row],[№ действия]] -> Событие44№2действие6 | I82: =AND(VLOOKUP(База[[#This Row],[Уник]],Уникальные[],2,FALSE)<>0,VLOOKUP(База[[#This Row],[Уник]],Уникальные[],3,FALSE)<>0) -> FALSE
A83: 2016-03-14T02:03:17 | B83: 2016-03-14T02:03:17 | C83: Событие45 | D83: №1 | E83: действие53 | F83: 0.39 | G83: 18 | H83: =База[[#This Row],[№ события]]&База[[#This Row],[ 1-6]]&База[[#This Row],[№ действия]] -> Событие45№1действие53 | I83: =AND(VLOOKUP(База[[#This Row],[Уник]],Уникальные[],2,FALSE)<>0,VLOOKUP(База[[#This Row],[Уник]],Уникальные[],3,FALSE)<>0) -> FALSE
A84: 2016-03-14T02:03:25 | B84: 2016-03-14T19:52:35 | C84: Событие45 | D84: №2 | E84: действие43 | F84: 0.34 | G84: 27 | H84: =База[[#This Row],[№ события]]&База[[#This Row],[ 1-6]]&База[[#This Row],[№ действия]] -> Событие45№2действие43 | I84: =AND(VLOOKUP(База[[#This Row],[Уник]],Уникальные[],2,FALSE)<>0,VLOOKUP(База[[#This Row],[Уник]],Уникальные[],3,FALSE)<>0) -> FALSE
A85: 2016-03-14T02:03:33 | B85: 2016-03-14T02:03:33 | C85: Событие45 | D85: №3 | E85: действие54 | F85: 0.31 | G85: 17 | H85: =База[[#This Row],[№ события]]&База[[#This Row],[ 1-6]]&База[[#This Row],[№ действия]] -> Событие45№3действие54 | I85: =AND(VLOOKUP(База[[#This Row],[Уник]],Уникальные[],2,FALSE)<>0,VLOOKUP(База[[#This Row],[Уник]],Уникальные[],3,FALSE)<>0) -> FALSE
A86: 2016-03-14T02:04:10 | B86: 2016-03-14T05:04:56 | C86: Событие46 | D86: №3 | E86: действие51 | F86: 0.74 | G86: 13 | H86: =База[[#This Row],[№ события]]&База[[#This Row],[ 1-6]]&База[[#This Row],[№ действия]] -> Событие46№3действие51 | I86: =AND(VLOOKUP(База[[#This Row],[Уник]],Уникальные[],2,FALSE)<>0,VLOOKUP(База[[#This Row],[Уник]],Уникальные[],3,FALSE)<>0) -> FALSE
A87: 2016-03-14T02:04:21 | B87: 2016-03-14T19:53:31 | C87: Событие46 | D87: №5 | E87: действие7 | F87: 0.6 | G87: 23 | H87: =База[[#This Row],[№ события]]&База[[#This Row],[ 1-6]]&База[[#This Row],[№ действия]] -> Событие46№5действие7 | I87: =AND(VLOOKUP(База[[#This Row],[Уник]],Уникальные[],2,FALSE)<>0,VLOOKUP(База[[#This Row],[Уник]],Уникальные[],3,FALSE)<>0) -> FALSE
A88: 2016-03-14T02:05:12 | B88: 2016-03-14T02:05:12 | C88: Событие47 | D88: №2 | E88: действие55 | F88: 0.31 | G88: 24 | H88: =База[[#This Row],[№ события]]&База[[#This Row],[ 1-6]]&База[[#This Row],[№ действия]] -> Событие47№2действие55 | I88: =AND(VLOOKUP(База[[#This Row],[Уник]],Уникальные[],2,FALSE)<>0,VLOOKUP(База[[#This Row],[Уник]],Уникальные[],3,FALSE)<>0) -> FALSE
A89: 2016-03-14T02:07:29 | B89: 2016-03-14T16:39:20 | C89: Событие48 | D89: №2 | E89: действие56 | F89: 0.38 | G89: 13 | H89: =База[[#This Row],[№ события]]&База[[#This Row],[ 1-6]]&База[[#This Row],[№ действия]] -> Событие48№2действие56 | I89: =AND(VLOOKUP(База[[#This Row],[Уник]],Уникальные[],2,FALSE)<>0,VLOOKUP(База[[#This Row],[Уник]],Уникальные[],3,FALSE)<>0) -> FALSE
A90: 2016-03-14T02:07:38 | B90: 2016-03-14T19:10:53 | C90: Событие48 | D90: №4 | E90: действие24 | F90: 0.51 | G90: 7 | H90: =База[[#This Row],[№ события]]&База[[#This Row],[ 1-6]]&База[[#This Row],[№ действия]] -> Событие48№4действие24 | I90: =AND(VLOOKUP(База[[#This Row],[Уник]],Уникальные[],2,FALSE)<>0,VLOOKUP(База[[#This Row],[Уник]],Уникальные[],3,FALSE)<>0) -> FALSE
A91: 2016-03-14T02:07:46 | B91: 2016-03-14T02:07:46 | C91: Событие48 | D91: №5 | E91: действие13 | F91: 0.38 | G91: 13 | H91: =База[[#This Row],[№ события]]&База[[#This Row],[ 1-6]]&База[[#This Row],[№ действия]] -> Событие48№5действие13 | I91: =AND(VLOOKUP(База[[#This Row],[Уник]],Уникальные[],2,FALSE)<>0,VLOOKUP(База[[#This Row],[Уник]],Уникальные[],3,FALSE)<>0) -> FALSE
A92: 2016-03-14T02:08:16 | B92: 2016-03-14T15:02:38 | C92: Событие49 | D92: №3 | E92: действие57 | F92: 0.89 | G92: 11 | H92: =База[[#This Row],[№ события]]&База[[#This Row],[ 1-6]]&База[[#This Row],[№ действия]] -> Событие49№3действие57 | I92: =AND(VLOOKUP(База[[#This Row],[Уник]],Уникальные[],2,FALSE)<>0,VLOOKUP(База[[#This Row],[Уник]],Уникальные[],3,FALSE)<>0) -> FALSE
A93: 2016-03-14T02:08:23 | B93: 2016-03-14T19:11:32 | C93: Событие49 | D93: №5 | E93: действие58 | F93: 0.56 | G93: 24 | H93: =База[[#This Row],[№ события]]&База[[#This Row],[ 1-6]]&База[[#This Row],[№ действия]] -> Событие49№5действие58 | I93: =AND(VLOOKUP(База[[#This Row],[Уник]],Уникальные[],2,FALSE)<>0,VLOOKUP(База[[#This Row],[Уник]],Уникальные[],3,FALSE)<>0) -> FALSE
A94: 2016-03-14T02:09:49 | B94: 2016-03-14T16:40:34 | C94: Событие50 | D94: №1 | E94: действие58 | F94: 0.55 | G94: 23 | H94: =База[[#This Row],[№ события]]&База[[#This Row],[ 1-6]]&База[[#This Row],[№ действия]] -> Событие50№1действие58 | I94: =AND(VLOOKUP(База[[#This Row],[Уник]],Уникальные[],2,FALSE)<>0,VLOOKUP(База[[#This Row],[Уник]],Уникальные[],3,FALSE)<>0) -> FALSE
A95: 2016-03-14T02:09:57 | B95: 2016-03-14T19:12:10 | C95: Событие50 | D95: №2 | E95: действие59 | F95: 0.49 | G95: 16 | H95: =База[[#This Row],[№ события]]&База[[#This Row],[ 1-6]]&База[[#This Row],[№ действия]] -> Событие50№2действие59 | I95: =AND(VLOOKUP(База[[#This Row],[Уник]],Уникальные[],2,FALSE)<>0,VLOOKUP(База[[#This Row],[Уник]],Уникальные[],3,FALSE)<>0) -> FALSE
A96: 2016-03-14T02:10:48 | B96: 2016-03-14T16:41:17 | C96: Событие51 | D96: №5 | E96: действие25 | F96: 0.55 | G96: 18 | H96: =База[[#This Row],[№ события]]&База[[#This Row],[ 1-6]]&База[[#This Row],[№ действия]] -> Событие51№5действие25 | I96: =AND(VLOOKUP(База[[#This Row],[Уник]],Уникальные[],2,FALSE)<>0,VLOOKUP(База[[#This Row],[Уник]],Уникальные[],3,FALSE)<>0) -> FALSE
A97: 2016-03-14T02:11:49 | B97: 2016-03-14T19:13:12 | C97: Событие52 | D97: №1 | E97: действие60 | F97: 0.71 | G97: 10 | H97: =База[[#This Row],[№ события]]&База[[#This Row],[ 1-6]]&База[[#This Row],[№ действия]] -> Событие52№1действие60 | I97: =AND(VLOOKUP(База[[#This Row],[Уник]],Уникальные[],2,FALSE)<>0,VLOOKUP(База[[#This Row],[Уник]],Уникальные[],3,FALSE)<>0) -> FALSE
A98: 2016-03-14T02:11:57 | B98: 2016-03-14T09:52:38 | C98: Событие52 | D98: №3 | E98: действие52 | F98: 0.7 | G98: 12 | H98: =База[[#This Row],[№ события]]&База[[#This Row],[ 1-6]]&База[[#This Row],[№ действия]] -> Событие52№3действие52 | I98: =AND(VLOOKUP(База[[#This Row],[Уник]],Уникальные[],2,FALSE)<>0,VLOOKUP(База[[#This Row],[Уник]],Уникальные[],3,FALSE)<>0) -> FALSE
A99: 2016-03-14T02:12:04 | B99: 2016-03-14T14:20:03 | C99: Событие52 | D99: №4 | E99: действие61 | F99: 0.71 | G99: 14 | H99: =База[[#This Row],[№ события]]&База[[#This Row],[ 1-6]]&База[[#This Row],[№ действия]] -> Событие52№4действие61 | I99: =AND(VLOOKUP(База[[#This Row],[Уник]],Уникальные[],2,FALSE)<>0,VLOOKUP(База[[#This Row],[Уник]],Уникальные[],3,FALSE)<>0) -> FALSE
A100: 2016-03-14T02:12:12 | B100: 2016-03-14T19:13:35 | C100: Событие52 | D100: №5 | E100: действие4 | F100: 0.77 | G100: 9 | H100: =База[[#This Row],[№ события]]&База[[#This Row],[ 1-6]]&База[[#This Row],[№ действия]] -> Событие52№5действие4 | I100: =AND(VLOOKUP(База[[#This Row],[Уник]],Уникальные[],2,FALSE)<>0,VLOOKUP(База[[#This Row],[Уник]],Уникальные[],3,FALSE)<>0) -> FALSE
A101: 2016-03-14T02:12:41 | B101: 2016-03-14T19:14:03 | C101: Событие53 | D101: №5 | E101: действие17 | F101: 0.65 | G101: 11 | H101: =База[[#This Row],[№ события]]&База[[#This Row],[ 1-6]]&База[[#This Row],[№ действия]] -> Событие53№5действие17 | I101: =AND(VLOOKUP(База[[#This Row],[Уник]],Уникальные[],2,FALSE)<>0,VLOOKUP(База[[#This Row],[Уник]],Уникальные[],3,FALSE)<>0) -> FALSE
A102: 2016-03-14T02:13:24 | B102: 2016-03-14T10:40:16 | C102: Событие54 | D102: №1 | E102: действие62 | F102: 1 | G102: 9 | H102: =База[[#This Row],[№ события]]&База[[#This Row],[ 1-6]]&База[[#This Row],[№ действия]] -> Событие54№1действие62 | I102: =AND(VLOOKUP(База[[#This Row],[Уник]],Уникальные[],2,FALSE)<>0,VLOOKUP(База[[#This Row],[Уник]],Уникальные[],3,FALSE)<>0) -> FALSE
A103: 2016-03-14T02:13:33 | B103: 2016-03-14T19:14:43 | C103: Событие54 | D103: №2 | E103: действие60 | F103: 0.65 | G103: 7 | H103: =База[[#This Row],[№ события]]&База[[#This Row],[ 1-6]]&База[[#This Row],[№ действия]] -> Событие54№2действие60 | I103: =AND(VLOOKUP(База[[#This Row],[Уник]],Уникальные[],2,FALSE)<>0,VLOOKUP(База[[#This Row],[Уник]],Уникальные[],3,FALSE)<>0) -> FALSE
A104: 2016-03-14T02:13:45 | B104: 2016-03-14T19:14:51 | C104: Событие54 | D104: №4 | E104: действие63 | F104: 0.46 | G104: 13 | H104: =База[[#This Row],[№ события]]&База[[#This Row],[ 1-6]]&База[[#This Row],[№ действия]] -> Событие54№4действие63 | I104: =AND(VLOOKUP(База[[#This Row],[Уник]],Уникальные[],2,FALSE)<>0,VLOOKUP(База[[#This Row],[Уник]],Уникальные[],3,FALSE)<>0) -> FALSE
A105: 2016-03-14T02:13:55 | B105: 2016-03-14T09:54:22 | C105: Событие54 | D105: №5 | E105: действие64 | F105: 0.31 | G105: 20 | H105: =База[[#This Row],[№ события]]&База[[#This Row],[ 1-6]]&База[[#This Row],[№ действия]] -> Событие54№5действие64 | I105: =AND(VLOOKUP(База[[#This Row],[Уник]],Уникальные[],2,FALSE)<>0,VLOOKUP(База[[#This Row],[Уник]],Уникальные[],3,FALSE)<>0) -> FALSE
A106: 2016-03-14T02:15:14 | B106: 2016-03-14T13:40:35 | C106: Событие55 | D106: №1 | E106: действие65 | F106: 0.48 | G106: 12 | H106: =База[[#This Row],[№ события]]&База[[#This Row],[ 1-6]]&База[[#This Row],[№ действия]] -> Событие55№1действие65 | I106: =AND(VLOOKUP(База[[#This Row],[Уник]],Уникальные[],2,FALSE)<>0,VLOOKUP(База[[#This Row],[Уник]],Уникальные[],3,FALSE)<>0) -> FALSE
A107: 2016-03-14T02:15:22 | B107: 2016-03-14T16:44:11 | C107: Событие55 | D107: №2 | E107: действие8 | F107: 0.46 | G107: 12 | H107: =База[[#This Row],[№ события]]&База[[#This Row],[ 1-6]]&База[[#This Row],[№ действия]] -> Событие55№2действие8 | I107: =AND(VLOOKUP(База[[#This Row],[Уник]],Уникальные[],2,FALSE)<>0,VLOOKUP(База[[#This Row],[Уник]],Уникальные[],3,FALSE)<>0) -> FALSE
A108: 2016-03-14T02:15:47 | B108: 2016-03-14T09:09:39 | C108: Событие56 | D108: №4 | E108: действие22 | F108: 0.55 | G108: 23 | H108: =База[[#This Row],[№ события]]&База[[#This Row],[ 1-6]]&База[[#This Row],[№ действия]] -> Событие56№4действие22 | I108: =AND(VLOOKUP(База[[#This Row],[Уник]],Уникальные[],2,FALSE)<>0,VLOOKUP(База[[#This Row],[Уник]],Уникальные[],3,FALSE)<>0) -> FALSE
A109: 2016-03-14T02:16:14 | B109: 2016-03-14T15:07:42 | C109: Событие57 | D109: №2 | E109: действие66 | F109: 0.32 | G109: 10 | H109: =База[[#This Row],[№ события]]&База[[#This Row],[ 1-6]]&База[[#This Row],[№ действия]] -> Событие57№2действие66 | I109: =AND(VLOOKUP(База[[#This Row],[Уник]],Уникальные[],2,FALSE)<>0,VLOOKUP(База[[#This Row],[Уник]],Уникальные[],3,FALSE)<>0) -> FALSE
A110: 2016-03-14T02:16:45 | B110: 2016-03-14T02:16:45 | C110: Событие58 | D110: №3 | E110: действие4 | F110: 0.63 | G110: 28 | H110: =База[[#This Row],[№ события]]&База[[#This Row],[ 1-6]]&База[[#This Row],[№ действия]] -> Событие58№3действие4 | I110: =AND(VLOOKUP(База[[#This Row],[Уник]],Уникальные[],2,FALSE)<>0,VLOOKUP(База[[#This Row],[Уник]],Уникальные[],3,FALSE)<>0) -> FALSE
A111: 2016-03-14T02:17:09 | B111: 2016-03-14T08:24:27 | C111: Событие59 | D111: №5 | E111: действие29 | F111: 0.37 | G111: 7 | H111: =База[[#This Row],[№ события]]&База[[#This Row],[ 1-6]]&База[[#This Row],[№ действия]] -> Событие59№5действие29 | I111: =AND(VLOOKUP(База[[#This Row],[Уник]],Уникальные[],2,FALSE)<>0,VLOOKUP(База[[#This Row],[Уник]],Уникальные[],3,FALSE)<>0) -> FALSE
A112: 2016-03-14T02:17:52 | B112: 2016-03-14T02:17:52 | C112: Событие60 | D112: №2 | E112: действие65 | F112: 0.58 | G112: 24 | H112: =База[[#This Row],[№ события]]&База[[#This Row],[ 1-6]]&База[[#This Row],[№ действия]] -> Событие60№2действие65 | I112: =AND(VLOOKUP(База[[#This Row],[Уник]],Уникальные[],2,FALSE)<>0,VLOOKUP(База[[#This Row],[Уник]],Уникальные[],3,FALSE)<>0) -> FALSE
A113: 2016-03-14T02:18:00 | B113: 2016-03-14T15:53:46 | C113: Событие60 | D113: №3 | E113: действие57 | F113: 0.51 | G113: 18 | H113: =База[[#This Row],[№ события]]&База[[#This Row],[ 1-6]]&База[[#This Row],[№ действия]] -> Событие60№3действие57 | I113: =AND(VLOOKUP(База[[#This Row],[Уник]],Уникальные[],2,FALSE)<>0,VLOOKUP(База[[#This Row],[Уник]],Уникальные[],3,FALSE)<>0) -> FALSE
A114: 2016-03-14T02:19:43 | B114: 2016-03-14T15:09:21 | C114: Событие61 | D114: №2 | E114: действие25 | F114: 1 | G114: 8 | H114: =База[[#This Row],[№ события]]&База[[#This Row],[ 1-6]]&База[[#This Row],[№ действия]] -> Событие61№2действие25 | I114: =AND(VLOOKUP(База[[#This Row],[Уник]],Уникальные[],2,FALSE)<>0,VLOOKUP(База[[#This Row],[Уник]],Уникальные[],3,FALSE)<>0) -> FALSE
A115: 2016-03-14T02:19:51 | B115: 2016-03-14T19:18:24 | C115: Событие61 | D115: №3 | E115: действие61 | F115: 0.49 | G115: 15 | H115: =База[[#This Row],[№ события]]&База[[#This Row],[ 1-6]]&База[[#This Row],[№ действия]] -> Событие61№3действие61 | I115: =AND(VLOOKUP(База[[#This Row],[Уник]],Уникальные[],2,FALSE)<>0,VLOOKUP(База[[#This Row],[Уник]],Уникальные[],3,FALSE)<>0) -> FALSE
A116: 2016-03-14T02:20:21 | B116: 2016-03-14T02:20:21 | C116: Событие62 | D116: №2 | E116: действие67 | F116: 0.6 | G116: 8 | H116: =База[[#This Row],[№ события]]&База[[#This Row],[ 1-6]]&База[[#This Row],[№ действия]] -> Событие62№2действие67 | I116: =AND(VLOOKUP(База[[#This Row],[Уник]],Уникальные[],2,FALSE)<>0,VLOOKUP(База[[#This Row],[Уник]],Уникальные[],3,FALSE)<>0) -> FALSE
A117: 2016-03-14T02:20:30 | B117: 2016-03-14T05:58:36 | C117: Событие62 | D117: №6 | E117: действие14 | F117: 0.39 | G117: 23 | H117: =База[[#This Row],[№ события]]&База[[#This Row],[ 1-6]]&База[[#This Row],[№ действия]] -> Событие62№6действие14 | I117: =AND(VLOOKUP(База[[#This Row],[Уник]],Уникальные[],2,FALSE)<>0,VLOOKUP(База[[#This Row],[Уник]],Уникальные[],3,FALSE)<>0) -> FALSE
A118: 2016-03-14T02:20:58 | B118: 2016-03-14T19:19:49 | C118: Событие63 | D118: №6 | E118: действие68 | F118: 0.55 | G118: 15 | H118: =База[[#This Row],[№ события]]&База[[#This Row],[ 1-6]]&База[[#This Row],[№ действия]] -> Событие63№6действие68 | I118: =AND(VLOOKUP(База[[#This Row],[Уник]],Уникальные[],2,FALSE)<>0,VLOOKUP(База[[#This Row],[Уник]],Уникальные[],3,FALSE)<>0) -> FALSE
A119: 2016-03-14T02:22:17 | B119: 2016-03-14T08:27:30 | C119: Событие64 | D119: №1 | E119: действие69 | F119: 0.7 | G119: 10 | H119: =База[[#This Row],[№ события]]&База[[#This Row],[ 1-6]]&База[[#This Row],[№ действия]] -> Событие64№1действие69 | I119: =AND(VLOOKUP(База[[#This Row],[Уник]],Уникальные[],2,FALSE)<>0,VLOOKUP(База[[#This Row],[Уник]],Уникальные[],3,FALSE)<>0) -> FALSE
A120: 2016-03-14T02:22:26 | B120: 2016-03-14T16:48:43 | C120: Событие64 | D120: №5 | E120: действие45 | F120: 0.48 | G120: 17 | H120: =База[[#This Row],[№ события]]&База[[#This Row],[ 1-6]]&База[[#This Row],[№ действия]] -> Событие64№5действие45 | I120: =AND(VLOOKUP(База[[#This Row],[Уник]],Уникальные[],2,FALSE)<>0,VLOOKUP(База[[#This Row],[Уник]],Уникальные[],3,FALSE)<>0) -> FALSE
A121: 2016-03-14T02:22:34 | B121: 2016-03-14T16:40:42 | C121: Событие64 | D121: №6 | E121: действие70 | F121: 0.84 | G121: 16 | H121: =База[[#This Row],[№ события]]&База[[#This Row],[ 1-6]]&База[[#This Row],[№ действия]] -> Событие64№6действие70 | I121: =AND(VLOOKUP(База[[#This Row],[Уник]],Уникальные[],2,FALSE)<>0,VLOOKUP(База[[#This Row],[Уник]],Уникальные[],3,FALSE)<>0) -> FALSE
A122: 2016-03-14T02:23:37 | B122: 2016-03-14T15:11:56 | C122: Событие65 | D122: №1 | E122: действие71 | F122: 0.62 | G122: 13 | H122: =База[[#This Row],[№ события]]&База[[#This Row],[ 1-6]]&База[[#This Row],[№ действия]] -> Событие65№1действие71 | I122: =AND(VLOOKUP(База[[#This Row],[Уник]],Уникальные[],2,FALSE)<>0,VLOOKUP(База[[#This Row],[Уник]],Уникальные[],3,FALSE)<>0) -> FALSE
A123: 2016-03-14T02:24:20 | B123: 2016-03-14T16:41:43 | C123: Событие66 | D123: №4 | E123: действие72 | F123: 0.58 | G123: 25 | H123: =База[[#This Row],[№ события]]&База[[#This Row],[ 1-6]]&База[[#This Row],[№ действия]] -> Событие66№4действие72 | I123: =AND(VLOOKUP(База[[#This Row],[Уник]],Уникальные[],2,FALSE)<>0,VLOOKUP(База[[#This Row],[Уник]],Уникальные[],3,FALSE)<>0) -> FALSE
A124: 2016-03-14T02:24:47 | B124: 2016-03-14T19:22:15 | C124: Событие67 | D124: №3 | E124: действие73 | F124: 0.69 | G124: 10 | H124: =База[[#This Row],[№ события]]&База[[#This Row],[ 1-6]]&База[[#This Row],[№ действия]] -> Событие67№3действие73 | I124: =AND(VLOOKUP(База[[#This Row],[Уник]],Уникальные[],2,FALSE)<>0,VLOOKUP(База[[#This Row],[Уник]],Уникальные[],3,FALSE)<>0) -> FALSE
A125: 2016-03-14T02:26:06 | B125: 2016-03-14T16:42:45 | C125: Событие68 | D125: №3 | E125: действие42 | F125: 0.47 | G125: 8 | H125: =База[[#This Row],[№ события]]&База[[#This Row],[ 1-6]]&База[[#This Row],[№ действия]] -> Событие68№3действие42 | I125: =AND(VLOOKUP(База[[#This Row],[Уник]],Уникальные[],2,FALSE)<>0,VLOOKUP(База[[#This Row],[Уник]],Уникальные[],3,FALSE)<>0) -> FALSE
A126: 2016-03-14T02:28:03 | B126: 2016-03-14T02:28:03 | C126: Событие69 | D126: №4 | E126: действие69 | F126: 0.93 | G126: 7 | H126: =База[[#This Row],[№ события]]&База[[#This Row],[ 1-6]]&База[[#This Row],[№ действия]] -> Событие69№4действие69 | I126: =AND(VLOOKUP(База[[#This Row],[Уник]],Уникальные[],2,FALSE)<>0,VLOOKUP(База[[#This Row],[Уник]],Уникальные[],3,FALSE)<>0) -> FALSE
A127: 2016-03-14T02:32:16 | B127: 2016-03-14T16:46:34 | C127: Событие70 | D127: №1 | E127: действие74 | F127: 0.68 | G127: 16 | H127: =База[[#This Row],[№ события]]&База[[#This Row],[ 1-6]]&База[[#This Row],[№ действия]] -> Событие70№1действие74 | I127: =AND(VLOOKUP(База[[#This Row],[Уник]],Уникальные[],2,FALSE)<>0,VLOOKUP(База[[#This Row],[Уник]],Уникальные[],3,FALSE)<>0) -> FALSE
A128: 2016-03-14T02:36:49 | B128: 2016-03-14T16:47:01 | C128: Событие71 | D128: №3 | E128: действие57 | F128: 1 | G128: 8 | H128: =База[[#This Row],[№ события]]&База[[#This Row],[ 1-6]]&База[[#This Row],[№ действия]] -> Событие71№3действие57 | I128: =AND(VLOOKUP(База[[#This Row],[Уник]],Уникальные[],2,FALSE)<>0,VLOOKUP(База[[#This Row],[Уник]],Уникальные[],3,FALSE)<>0) -> FALSE
A129: 2016-03-14T02:36:58 | B129: 2016-03-14T19:27:18 | C129: Событие71 | D129: №4 | E129: действие4 | F129: 1 | G129: 7 | H129: =База[[#This Row],[№ события]]&База[[#This Row],[ 1-6]]&База[[#This Row],[№ действия]] -> Событие71№4действие4 | I129: =AND(VLOOKUP(База[[#This Row],[Уник]],Уникальные[],2,FALSE)<>0,VLOOKUP(База[[#This Row],[Уник]],Уникальные[],3,FALSE)<>0) -> FALSE
A130: 2016-03-14T02:39:17 | B130: 2016-03-14T19:27:47 | C130: Событие72 | D130: №1 | E130: действие49 | F130: 0.6 | G130: 8 | H130: =База[[#This Row],[№ события]]&База[[#This Row],[ 1-6]]&База[[#This Row],[№ действия]] -> Событие72№1действие49 | I130: =AND(VLOOKUP(База[[#This Row],[Уник]],Уникальные[],2,FALSE)<>0,VLOOKUP(База[[#This Row],[Уник]],Уникальные[],3,FALSE)<>0) -> FALSE
A131: 2016-03-14T02:41:04 | B131: 2016-03-14T19:28:17 | C131: Событие73 | D131: №4 | E131: действие75 | F131: 0.91 | G131: 9 | H131: =База[[#This Row],[№ события]]&База[[#This Row],[ 1-6]]&База[[#This Row],[№ действия]] -> Событие73№4действие75 | I131: =AND(VLOOKUP(База[[#This Row],[Уник]],Уникальные[],2,FALSE)<>0,VLOOKUP(База[[#This Row],[Уник]],Уникальные[],3,FALSE)<>0) -> FALSE
A132: 2016-03-14T02:43:58 | B132: 2016-03-14T15:19:25 | C132: Событие74 | D132: №3 | E132: действие76 | F132: 0.68 | G132: 18 | H132: =База[[#This Row],[№ события]]&База[[#This Row],[ 1-6]]&База[[#This Row],[№ действия]] -> Событие74№3действие76 | I132: =AND(VLOOKUP(База[[#This Row],[Уник]],Уникальные[],2,FALSE)<>0,VLOOKUP(База[[#This Row],[Уник]],Уникальные[],3,FALSE)<>0) -> FALSE
A133: 2016-03-14T02:45:34 | B133: 2016-03-14T16:49:01 | C133: Событие75 | D133: №1 | E133: действие77 | F133: 0.93 | G133: 7 | H133: =База[[#This Row],[№ события]]&База[[#This Row],[ 1-6]]&База[[#This Row],[№ действия]] -> Событие75№1действие77 | I133: =AND(VLOOKUP(База[[#This Row],[Уник]],Уникальные[],2,FALSE)<>0,VLOOKUP(База[[#This Row],[Уник]],Уникальные[],3,FALSE)<>0) -> FALSE
A134: 2016-03-14T02:45:53 | B134: 2016-03-14T03:49:45 | C134: Событие75 | D134: №5 | E134: действие41 | F134: 0.8 | G134: 10 | H134: =База[[#This Row],[№ события]]&База[[#This Row],[ 1-6]]&База[[#This Row],[№ действия]] -> Событие75№5действие41 | I134: =AND(VLOOKUP(База[[#This Row],[Уник]],Уникальные[],2,FALSE)<>0,VLOOKUP(База[[#This Row],[Уник]],Уникальные[],3,FALSE)<>0) -> FALSE
A135: 2016-03-14T02:47:32 | B135: 2016-03-14T02:47:32 | C135: Событие76 | D135: №3 | E135: действие13 | F135: 0.64 | G135: 9 | H135: =База[[#This Row],[№ события]]&База[[#This Row],[ 1-6]]&База[[#This Row],[№ действия]] -> Событие76№3действие13 | I135: =AND(VLOOKUP(База[[#This Row],[Уник]],Уникальные[],2,FALSE)<>0,VLOOKUP(База[[#This Row],[Уник]],Уникальные[],3,FALSE)<>0) -> FALSE
A136: 2016-03-14T02:52:58 | B136: 2016-03-14T14:30:16 | C136: Событие77 | D136: №6 | E136: действие39 | F136: 0.84 | G136: 8 | H136: =База[[#This Row],[№ события]]&База[[#This Row],[ 1-6]]&База[[#This Row],[№ действия]] -> Событие77№6действие39 | I136: =AND(VLOOKUP(База[[#This Row],[Уник]],Уникальные[],2,FALSE)<>0,VLOOKUP(База[[#This Row],[Уник]],Уникальные[],3,FALSE)<>0) -> FALSE
A137: 2016-03-14T02:53:32 | B137: 2016-03-14T11:35:28 | C137: Событие78 | D137: №5 | E137: действие34 | F137: 0.98 | G137: 24 | H137: =База[[#This Row],[№ события]]&База[[#This Row],[ 1-6]]&База[[#This Row],[№ действия]] -> Событие78№5действие34 | I137: =AND(VLOOKUP(База[[#This Row],[Уник]],Уникальные[],2,FALSE)<>0,VLOOKUP(База[[#This Row],[Уник]],Уникальные[],3,FALSE)<>0) -> FALSE
A138: 2016-03-14T02:54:55 | B138: 2016-03-14T02:54:55 | C138: Событие79 | D138: №6 | E138: действие59 | F138: 0.42 | G138: 10 | H138: =База[[#This Row],[№ события]]&База[[#This Row],[ 1-6]]&База[[#This Row],[№ действия]] -> Событие79№6действие59 | I138: =AND(VLOOKUP(База[[#This Row],[Уник]],Уникальные[],2,FALSE)<>0,VLOOKUP(База[[#This Row],[Уник]],Уникальные[],3,FALSE)<>0) -> FALSE
A139: 2016-03-14T02:55:23 | B139: 2016-03-14T02:55:23 | C139: Событие80 | D139: №2 | E139: действие78 | F139: 0.54 | G139: 17 | H139: =База[[#This Row],[№ события]]&База[[#This Row],[ 1-6]]&База[[#This Row],[№ действия]] -> Событие80№2действие78 | I139: =AND(VLOOKUP(База[[#This Row],[Уник]],Уникальные[],2,FALSE)<>0,VLOOKUP(База[[#This Row],[Уник]],Уникальные[],3,FALSE)<>0) -> FALSE
A140: 2016-03-14T02:55:32 | B140: 2016-03-14T05:20:23 | C140: Событие80 | D140: №3 | E140: действие79 | F140: 0.46 | G140: 12 | H140: =База[[#This Row],[№ события]]&База[[#This Row],[ 1-6]]&База[[#This Row],[№ действия]] -> Событие80№3действие79 | I140: =AND(VLOOKUP(База[[#This Row],[Уник]],Уникальные[],2,FALSE)<>0,VLOOKUP(База[[#This Row],[Уник]],Уникальные[],3,FALSE)<>0) -> FALSE
A141: 2016-03-14T02:56:11 | B141: 2016-03-14T02:56:11 | C141: Событие81 | D141: №5 | E141: действие80 | F141: 1 | G141: 16 | H141: =База[[#This Row],[№ события]]&База[[#This Row],[ 1-6]]&База[[#This Row],[№ действия]] -> Событие81№5действие80 | I141: =AND(VLOOKUP(База[[#This Row],[Уник]],Уникальные[],2,FALSE)<>0,VLOOKUP(База[[#This Row],[Уник]],Уникальные[],3,FALSE)<>0) -> FALSE
A142: 2016-03-14T03:50:11 | B142: 2016-03-14T19:30:06 | C142: Событие76 | D142: №3 | E142: действие13 | F142: 0.55 | G142: 9 | H142: =База[[#This Row],[№ события]]&База[[#This Row],[ 1-6]]&База[[#This Row],[№ действия]] -> Событие76№3действие13 | I142: =AND(VLOOKUP(База[[#This Row],[Уник]],Уникальные[],2,FALSE)<>0,VLOOKUP(База[[#This Row],[Уник]],Уникальные[],3,FALSE)<>0) -> FALSE
A143: 2016-03-14T03:52:49 | B143: 2016-03-14T19:30:39 | C143: Событие82 | D143: №5 | E143: действие65 | F143: 0.93 | G143: 7 | H143: =База[[#This Row],[№ события]]&База[[#This Row],[ 1-6]]&База[[#This Row],[№ действия]] -> Событие82№5действие65 | I143: =AND(VLOOKUP(База[[#This Row],[Уник]],Уникальные[],2,FALSE)<>0,VLOOKUP(База[[#This Row],[Уник]],Уникальные[],3,FALSE)<>0) -> FALSE
A144: 2016-03-14T04:01:00 | B144: 2016-03-14T04:01:00 | C144: Событие83 | D144: №2 | E144: действие10 | F144: 0.47 | G144: 9 | H144: =База[[#This Row],[№ события]]&База[[#This Row],[ 1-6]]&База[[#This Row],[№ действия]] -> Событие83№2действие10 | I144: =AND(VLOOKUP(База[[#This Row],[Уник]],Уникальные[],2,FALSE)<>0,VLOOKUP(База[[#This Row],[Уник]],Уникальные[],3,FALSE)<>0) -> FALSE
A145: 2016-03-14T04:01:09 | B145: 2016-03-14T19:31:29 | C145: Событие83 | D145: №4 | E145: действие38 | F145: 1 | G145: 17 | H145: =База[[#This Row],[№ события]]&База[[#This Row],[ 1-6]]&База[[#This Row],[№ действия]] -> Событие83№4действие38 | I145: =AND(VLOOKUP(База[[#This Row],[Уник]],Уникальные[],2,FALSE)<>0,VLOOKUP(База[[#This Row],[Уник]],Уникальные[],3,FALSE)<>0) -> FALSE
A146: 2016-03-14T04:01:17 | B146: 2016-03-14T19:31:38 | C146: Событие83 | D146: №6 | E146: действие6 | F146: 0.6 | G146: 10 | H146: =База[[#This Row],[№ события]]&База[[#This Row],[ 1-6]]&База[[#This Row],[№ действия]] -> Событие83№6действие6 | I146: =AND(VLOOKUP(База[[#This Row],[Уник]],Уникальные[],2,FALSE)<>0,VLOOKUP(База[[#This Row],[Уник]],Уникальные[],3,FALSE)<>0) -> FALSE
A147: 2016-03-14T04:38:38 | B147: 2016-03-14T14:38:31 | C147: Событие84 | D147: №2 | E147: действие53 | F147: 0.37 | G147: 7 | H147: =База[[#This Row],[№ события]]&База[[#This Row],[ 1-6]]&База[[#This Row],[№ действия]] -> Событие84№2действие53 | I147: =AND(VLOOKUP(База[[#This Row],[Уник]],Уникальные[],2,FALSE)<>0,VLOOKUP(База[[#This Row],[Уник]],Уникальные[],3,FALSE)<>0) -> FALSE
A148: 2016-03-14T04:39:04 | B148: 2016-03-14T16:07:47 | C148: Событие85 | D148: №2 | E148: действие65 | F148: 0.6 | G148: 20 | H148: =База[[#This Row],[№ события]]&База[[#This Row],[ 1-6]]&База[[#This Row],[№ действия]] -> Событие85№2действие65 | I148: =AND(VLOOKUP(База[[#This Row],[Уник]],Уникальные[],2,FALSE)<>0,VLOOKUP(База[[#This Row],[Уник]],Уникальные[],3,FALSE)<>0) -> FALSE
A149: 2016-03-14T04:39:12 | B149: 2016-03-14T19:32:14 | C149: Событие85 | D149: №3 | E149: действие81 | F149: 0.79 | G149: 7 | H149: =База[[#This Row],[№ события]]&База[[#This Row],[ 1-6]]&База[[#This Row],[№ действия]] -> Событие85№3действие81 | I149: =AND(VLOOKUP(База[[#This Row],[Уник]],Уникальные[],2,FALSE)<>0,VLOOKUP(База[[#This Row],[Уник]],Уникальные[],3,FALSE)<>0) -> FALSE
A150: 2016-03-14T04:39:20 | B150: 2016-03-14T19:32:22 | C150: Событие85 | D150: №4 | E150: действие82 | F150: 0.61 | G150: 25 | H150: =База[[#This Row],[№ события]]&База[[#This Row],[ 1-6]]&База[[#This Row],[№ действия]] -> Событие85№4действие82 | I150: =AND(VLOOKUP(База[[#This Row],[Уник]],Уникальные[],2,FALSE)<>0,VLOOKUP(База[[#This Row],[Уник]],Уникальные[],3,FALSE)<>0) -> FALSE
A151: 2016-03-14T04:35:02 | B151: 2016-03-14T13:56:32 | C151: Событие86 | D151: №2 | E151: действие5 | F151: 0.6 | G151: 8 | H151: =База[[#This Row],[№ события]]&База[[#This Row],[ 1-6]]&База[[#This Row],[№ действия]] -> Событие86№2действие5 | I151: =AND(VLOOKUP(База[[#This Row],[Уник]],Уникальные[],2,FALSE)<>0,VLOOKUP(База[[#This Row],[Уник]],Уникальные[],3,FALSE)<>0) -> FALSE
A152: 2016-03-14T04:35:32 | B152: 2016-03-14T19:33:23 | C152: Событие87 | D152: №6 | E152: действие59 | F152: 0.49 | G152: 12 | H152: =База[[#This Row],[№ события]]&База[[#This Row],[ 1-6]]&База[[#This Row],[№ действия]] -> Событие87№6действие59 | I152: =AND(VLOOKUP(База[[#This Row],[Уник]],Уникальные[],2,FALSE)<>0,VLOOKUP(База[[#This Row],[Уник]],Уникальные[],3,FALSE)<>0) -> FALSE
A153: 2016-03-14T04:35:56 | B153: 2016-03-14T14:40:40 | C153: Событие88 | D153: №1 | E153: действие64 | F153: 0.56 | G153: 17 | H153: =База[[#This Row],[№ события]]&База[[#This Row],[ 1-6]]&База[[#This Row],[№ действия]] -> Событие88№1действие64 | I153: =AND(VLOOKUP(База[[#This Row],[Уник]],Уникальные[],2,FALSE)<>0,VLOOKUP(База[[#This Row],[Уник]],Уникальные[],3,FALSE)<>0) -> FALSE
A154: 2016-03-14T04:36:03 | B154: 2016-03-14T19:34:02 | C154: Событие88 | D154: №2 | E154: действие83 | F154: 0.79 | G154: 7 | H154: =База[[#This Row],[№ события]]&База[[#This Row],[ 1-6]]&База[[#This Row],[№ действия]] -> Событие88№2действие83 | I154: =AND(VLOOKUP(База[[#This Row],[Уник]],Уникальные[],2,FALSE)<>0,VLOOKUP(База[[#This Row],[Уник]],Уникальные[],3,FALSE)<>0) -> FALSE
A155: 2016-03-14T04:36:11 | B155: 2016-03-14T07:54:42 | C155: Событие88 | D155: №4 | E155: действие53 | F155: 0.64 | G155: 9 | H155: =База[[#This Row],[№ события]]&База[[#This Row],[ 1-6]]&База[[#This Row],[№ действия]] -> Событие88№4действие53 | I155: =AND(VLOOKUP(База[[#This Row],[Уник]],Уникальные[],2,FALSE)<>0,VLOOKUP(База[[#This Row],[Уник]],Уникальные[],3,FALSE)<>0) -> FALSE
A156: 2016-03-14T04:36:47 | B156: 2016-03-14T18:40:36 | C156: Событие1 | D156: №4 | E156: действие79 | F156: 0.6 | G156: 22 | H156: =База[[#This Row],[№ события]]&База[[#This Row],[ 1-6]]&База[[#This Row],[№ действия]] -> Событие1№4действие79 | I156: =AND(VLOOKUP(База[[#This Row],[Уник]],Уникальные[],2,FALSE)<>0,VLOOKUP(База[[#This Row],[Уник]],Уникальные[],3,FALSE)<>0) -> FALSE
A157: 2016-03-14T04:37:33 | B157: 2016-03-14T19:35:15 | C157: Событие2 | D157: №3 | E157: действие2 | F157: 0.57 | G157: 26 | H157: =База[[#This Row],[№ события]]&База[[#This Row],[ 1-6]]&База[[#This Row],[№ действия]] -> Событие2№3действие2 | I157: =AND(VLOOKUP(База[[#This Row],[Уник]],Уникальные[],2,FALSE)<>0,VLOOKUP(База[[#This Row],[Уник]],Уникальные[],3,FALSE)<>0) -> FALSE
A158: 2016-03-14T04:42:53 | B158: 2016-03-14T19:32:29 | C158: Событие11 | D158: №6 | E158: действие16 | F158: 0.58 | G158: 24 | H158: =База[[#This Row],[№ события]]&База[[#This Row],[ 1-6]]&База[[#This Row],[№ действия]] -> Событие11№6действие16 | I158: =AND(VLOOKUP(База[[#This Row],[Уник]],Уникальные[],2,FALSE)<>0,VLOOKUP(База[[#This Row],[Уник]],Уникальные[],3,FALSE)<>0) -> FALSE
A159: 2016-03-14T04:44:55 | B159: 2016-03-14T19:34:28 | C159: Событие14 | D159: №6 | E159: действие13 | F159: 0.79 | G159: 7 | H159: =База[[#This Row],[№ события]]&База[[#This Row],[ 1-6]]&База[[#This Row],[№ действия]] -> Событие14№6действие13 | I159: =AND(VLOOKUP(База[[#This Row],[Уник]],Уникальные[],2,FALSE)<>0,VLOOKUP(База[[#This Row],[Уник]],Уникальные[],3,FALSE)<>0) -> FALSE
A160: 2016-03-14T04:45:27 | B160: 2016-03-14T19:34:55 | C160: Событие15 | D160: №4 | E160: действие21 | F160: 0.4 | G160: 27 | H160: =База[[#This Row],[№ события]]&База[[#This Row],[ 1-6]]&База[[#This Row],[№ действия]] -> Событие15№4действие21 | I160: =AND(VLOOKUP(База[[#This Row],[Уник]],Уникальные[],2,FALSE)<>0,VLOOKUP(База[[#This Row],[Уник]],Уникальные[],3,FALSE)<>0) -> FALSE
A161: 2016-03-14T04:45:35 | B161: 2016-03-14T19:35:02 | C161: Событие15 | D161: №5 | E161: действие11 | F161: 0.36 | G161: 16 | H161: =База[[#This Row],[№ события]]&База[[#This Row],[ 1-6]]&База[[#This Row],[№ действия]] -> Событие15№5действие11 | I161: =AND(VLOOKUP(База[[#This Row],[Уник]],Уникальные[],2,FALSE)<>0,VLOOKUP(База[[#This Row],[Уник]],Уникальные[],3,FALSE)<>0) -> FALSE
A162: 2016-03-14T04:46:01 | B162: 2016-03-14T19:35:34 | C162: Событие16 | D162: №5 | E162: действие22 | F162: 0.93 | G162: 7 | H162: =База[[#This Row],[№ события]]&База[[#This Row],[ 1-6]]&База[[#This Row],[№ действия]] -> Событие16№5действие22 | I162: =AND(VLOOKUP(База[[#This Row],[Уник]],Уникальные[],2,FALSE)<>0,VLOOKUP(База[[#This Row],[Уник]],Уникальные[],3,FALSE)<>0) -> FALSE
A163: 2016-03-14T04:50:54 | B163: 2016-03-14T06:19:38 | C163: Событие24 | D163: №1 | E163: действие2 | F163: 0.53 | G163: 20 | H163: =База[[#This Row],[№ события]]&База[[#This Row],[ 1-6]]&База[[#This Row],[№ действия]] -> Событие24№1действие2 | I163: =AND(VLOOKUP(База[[#This Row],[Уник]],Уникальные[],2,FALSE)<>0,VLOOKUP(База[[#This Row],[Уник]],Уникальные[],3,FALSE)<>0) -> FALSE
A164: 2016-03-14T04:53:01 | B164: 2016-03-14T19:42:10 | C164: Событие27 | D164: №6 | E164: действие6 | F164: 0.51 | G164: 7 | H164: =База[[#This Row],[№ события]]&База[[#This Row],[ 1-6]]&База[[#This Row],[№ действия]] -> Событие27№6действие6 | I164: =AND(VLOOKUP(База[[#This Row],[Уник]],Уникальные[],2,FALSE)<>0,VLOOKUP(База[[#This Row],[Уник]],Уникальные[],3,FALSE)<>0) -> FALSE
A165: 2016-03-14T04:54:02 | B165: 2016-03-14T19:43:13 | C165: Событие29 | D165: №1 | E165: действие36 | F165: 0.67 | G165: 11 | H165: =База[[#This Row],[№ события]]&База[[#This Row],[ 1-6]]&База[[#This Row],[№ действия]] -> Событие29№1действие36 | I165: =AND(VLOOKUP(База[[#This Row],[Уник]],Уникальные[],2,FALSE)<>0,VLOOKUP(База[[#This Row],[Уник]],Уникальные[],3,FALSE)<>0) -> FALSE
A166: 2016-03-14T04:54:22 | B166: 2016-03-14T19:43:37 | C166: Событие29 | D166: №6 | E166: действие37 | F166: 0.73 | G166: 26 | H166: =База[[#This Row],[№ события]]&База[[#This Row],[ 1-6]]&База[[#This Row],[№ действия]] -> Событие29№6действие37 | I166: =AND(VLOOKUP(База[[#This Row],[Уник]],Уникальные[],2,FALSE)<>0,VLOOKUP(База[[#This Row],[Уник]],Уникальные[],3,FALSE)<>0) -> FALSE
A167: 2016-03-14T04:54:53 | B167: 2016-03-14T16:27:44 | C167: Событие30 | D167: №5 | E167: действие36 | F167: 0.61 | G167: 29 | H167: =База[[#This Row],[№ события]]&База[[#This Row],[ 1-6]]&База[[#This Row],[№ действия]] -> Событие30№5действие36 | I167: =AND(VLOOKUP(База[[#This Row],[Уник]],Уникальные[],2,FALSE)<>0,VLOOKUP(База[[#This Row],[Уник]],Уникальные[],3,FALSE)<>0) -> FALSE
A168: 2016-03-14T04:55:01 | B168: 2016-03-14T19:44:11 | C168: Событие30 | D168: №6 | E168: действие38 | F168: 0.61 | G168: 29 | H168: =База[[#This Row],[№ события]]&База[[#This Row],[ 1-6]]&База[[#This Row],[№ действия]] -> Событие30№6действие38 | I168: =AND(VLOOKUP(База[[#This Row],[Уник]],Уникальные[],2,FALSE)<>0,VLOOKUP(База[[#This Row],[Уник]],Уникальные[],3,FALSE)<>0) -> FALSE
A169: 2016-03-14T04:58:05 | B169: 2016-03-14T19:47:20 | C169: Событие35 | D169: №5 | E169: действие43 | F169: 0.53 | G169: 18 | H169: =База[[#This Row],[№ события]]&База[[#This Row],[ 1-6]]&База[[#This Row],[№ действия]] -> Событие35№5действие43 | I169: =AND(VLOOKUP(База[[#This Row],[Уник]],Уникальные[],2,FALSE)<>0,VLOOKUP(База[[#This Row],[Уник]],Уникальные[],3,FALSE)<>0) -> FALSE
A170: 2016-03-14T05:01:12 | B170: 2016-03-14T10:39:30 | C170: Событие40 | D170: №3 | E170: действие8 | F170: 0.37 | G170: 20 | H170: =База[[#This Row],[№ события]]&База[[#This Row],[ 1-6]]&База[[#This Row],[№ действия]] -> Событие40№3действие8 | I170: =AND(VLOOKUP(База[[#This Row],[Уник]],Уникальные[],2,FALSE)<>0,VLOOKUP(База[[#This Row],[Уник]],Уникальные[],3,FALSE)<>0) -> FALSE
A171: 2016-03-14T05:03:05 | B171: 2016-03-14T12:12:11 | C171: Событие43 | D171: №4 | E171: действие51 | F171: 0.39 | G171: 19 | H171: =База[[#This Row],[№ события]]&База[[#This Row],[ 1-6]]&База[[#This Row],[№ действия]] -> Событие43№4действие51 | I171: =AND(VLOOKUP(База[[#This Row],[Уник]],Уникальные[],2,FALSE)<>0,VLOOKUP(База[[#This Row],[Уник]],Уникальные[],3,FALSE)<>0) -> FALSE
A172: 2016-03-14T05:04:02 | B172: 2016-03-14T19:52:27 | C172: Событие45 | D172: №1 | E172: действие53 | F172: 0.59 | G172: 20 | H172: =База[[#This Row],[№ события]]&База[[#This Row],[ 1-6]]&База[[#This Row],[№ действия]] -> Событие45№1действие53 | I172: =AND(VLOOKUP(База[[#This Row],[Уник]],Уникальные[],2,FALSE)<>0,VLOOKUP(База[[#This Row],[Уник]],Уникальные[],3,FALSE)<>0) -> FALSE
A173: 2016-03-14T05:04:19 | B173: 2016-03-14T19:52:43 | C173: Событие45 | D173: №3 | E173: действие54 | F173: 0.51 | G173: 19 | H173: =База[[#This Row],[№ события]]&База[[#This Row],[ 1-6]]&База[[#This Row],[№ действия]] -> Событие45№3действие54 | I173: =AND(VLOOKUP(База[[#This Row],[Уник]],Уникальные[],2,FALSE)<>0,VLOOKUP(База[[#This Row],[Уник]],Уникальные[],3,FALSE)<>0) -> FALSE
A174: 2016-03-14T05:05:35 | B174: 2016-03-14T12:54:55 | C174: Событие47 | D174: №2 | E174: действие55 | F174: 0.41 | G174: 25 | H174: =База[[#This Row],[№ события]]&База[[#This Row],[ 1-6]]&База[[#This Row],[№ действия]] -> Событие47№2действие55 | I174: =AND(VLOOKUP(База[[#This Row],[Уник]],Уникальные[],2,FALSE)<>0,VLOOKUP(База[[#This Row],[Уник]],Уникальные[],3,FALSE)<>0) -> FALSE
A175: 2016-03-14T05:12:05 | B175: 2016-03-14T07:36:57 | C175: Событие58 | D175: №3 | E175: действие4 | F175: 0.35 | G175: 28 | H175: =База[[#This Row],[№ события]]&База[[#This Row],[ 1-6]]&База[[#This Row],[№ действия]] -> Событие58№3действие4 | I175: =AND(VLOOKUP(База[[#This Row],[Уник]],Уникальные[],2,FALSE)<>0,VLOOKUP(База[[#This Row],[Уник]],Уникальные[],3,FALSE)<>0) -> FALSE
A176: 2016-03-14T05:13:00 | B176: 2016-03-14T16:46:03 | C176: Событие60 | D176: №2 | E176: действие65 | F176: 0.34 | G176: 24 | H176: =База[[#This Row],[№ события]]&База[[#This Row],[ 1-6]]&База[[#This Row],[№ действия]] -> Событие60№2действие65 | I176: =AND(VLOOKUP(База[[#This Row],[Уник]],Уникальные[],2,FALSE)<>0,VLOOKUP(База[[#This Row],[Уник]],Уникальные[],3,FALSE)<>0) -> FALSE
A177: 2016-03-14T05:14:18 | B177: 2016-03-14T19:19:01 | C177: Событие62 | D177: №2 | E177: действие67 | F177: 0.52 | G177: 8 | H177: =База[[#This Row],[№ события]]&База[[#This Row],[ 1-6]]&База[[#This Row],[№ действия]] -> Событие62№2действие67 | I177: =AND(VLOOKUP(База[[#This Row],[Уник]],Уникальные[],2,FALSE)<>0,VLOOKUP(База[[#This Row],[Уник]],Уникальные[],3,FALSE)<>0) -> FALSE
A178: 2016-03-14T05:18:07 | B178: 2016-03-14T19:23:19 | C178: Событие69 | D178: №4 | E178: действие69 | F178: 0.86 | G178: 7 | H178: =База[[#This Row],[№ события]]&База[[#This Row],[ 1-6]]&База[[#This Row],[№ действия]] -> Событие69№4действие69 | I178: =AND(VLOOKUP(База[[#This Row],[Уник]],Уникальные[],2,FALSE)<>0,VLOOKUP(База[[#This Row],[Уник]],Уникальные[],3,FALSE)<>0) -> FALSE
A179: 2016-03-14T05:19:45 | B179: 2016-03-14T19:25:01 | C179: Событие79 | D179: №6 | E179: действие59 | F179: 0.32 | G179: 10 | H179: =База[[#This Row],[№ события]]&База[[#This Row],[ 1-6]]&База[[#This Row],[№ действия]] -> Событие79№6действие59 | I179: =AND(VLOOKUP(База[[#This Row],[Уник]],Уникальные[],2,FALSE)<>0,VLOOKUP(База[[#This Row],[Уник]],Уникальные[],3,FALSE)<>0) -> FALSE
A180: 2016-03-14T05:20:13 | B180: 2016-03-14T19:25:28 | C180: Событие80 | D180: №2 | E180: действие78 | F180: 0.57 | G180: 19 | H180: =База[[#This Row],[№ события]]&База[[#This Row],[ 1-6]]&База[[#This Row],[№ действия]] -> Событие80№2действие78 | I180: =AND(VLOOKUP(База[[#This Row],[Уник]],Уникальные[],2,FALSE)<>0,VLOOKUP(База[[#This Row],[Уник]],Уникальные[],3,FALSE)<>0) -> FALSE
A181: 2016-03-14T05:20:53 | B181: 2016-03-14T19:26:12 | C181: Событие81 | D181: №5 | E181: действие80 | F181: 0.84 | G181: 16 | H181: =База[[#This Row],[№ события]]&База[[#This Row],[ 1-6]]&База[[#This Row],[№ действия]] -> Событие81№5действие80 | I181: =AND(VLOOKUP(База[[#This Row],[Уник]],Уникальные[],2,FALSE)<>0,VLOOKUP(База[[#This Row],[Уник]],Уникальные[],3,FALSE)<>0) -> FALSE
A182: 2016-03-14T05:24:02 | B182: 2016-03-14T19:29:35 | C182: Событие75 | D182: №5 | E182: действие41 | F182: 0.7 | G182: 10 | H182: =База[[#This Row],[№ события]]&База[[#This Row],[ 1-6]]&База[[#This Row],[№ действия]] -> Событие75№5действие41 | I182: =AND(VLOOKUP(База[[#This Row],[Уник]],Уникальные[],2,FALSE)<>0,VLOOKUP(База[[#This Row],[Уник]],Уникальные[],3,FALSE)<>0) -> FALSE
A183: 2016-03-14T05:25:33 | B183: 2016-03-14T10:10:33 | C183: Событие83 | D183: №2 | E183: действие10 | F183: 0.38 | G183: 9 | H183: =База[[#This Row],[№ события]]&База[[#This Row],[ 1-6]]&База[[#This Row],[№ действия]] -> Событие83№2действие10 | I183: =AND(VLOOKUP(База[[#This Row],[Уник]],Уникальные[],2,FALSE)<>0,VLOOKUP(База[[#This Row],[Уник]],Уникальные[],3,FALSE)<>0) -> FALSE
A184: 2016-03-14T05:48:56 | B184: 2016-03-14T19:53:19 | C184: Событие46 | D184: №3 | E184: действие51 | F184: 0.61 | G184: 13 | H184: =База[[#This Row],[№ события]]&База[[#This Row],[ 1-6]]&База[[#This Row],[№ действия]] -> Событие46№3действие51 | I184: =AND(VLOOKUP(База[[#This Row],[Уник]],Уникальные[],2,FALSE)<>0,VLOOKUP(База[[#This Row],[Уник]],Уникальные[],3,FALSE)<>0) -> FALSE
A185: 2016-03-14T06:04:27 | B185: 2016-03-14T19:25:38 | C185: Событие80 | D185: №3 | E185: действие79 | F185: 0.34 | G185: 12 | H185: =База[[#This Row],[№ события]]&База[[#This Row],[ 1-6]]&База[[#This Row],[№ действия]] -> Событие80№3действие79 | I185: =AND(VLOOKUP(База[[#This Row],[Уник]],Уникальные[],2,FALSE)<>0,VLOOKUP(База[[#This Row],[Уник]],Уникальные[],3,FALSE)<>0) -> FALSE
A186: 2016-03-14T06:05:27 | B186: 2016-03-14T06:05:27 | C186: Событие70 | D186: №5 | E186: действие80 | F186: 0.84 | G186: 16 | H186: =База[[#This Row],[№ события]]&База[[#This Row],[ 1-6]]&База[[#This Row],[№ действия]] -> Событие70№5действие80 | I186: =AND(VLOOKUP(База[[#This Row],[Уник]],Уникальные[],2,FALSE)<>0,VLOOKUP(База[[#This Row],[Уник]],Уникальные[],3,FALSE)<>0) -> FALSE
A187: 2016-03-14T06:42:30 | B187: 2016-03-14T19:19:17 | C187: Событие62 | D187: №6 | E187: действие14 | F187: 0.49 | G187: 24 | H187: =База[[#This Row],[№ события]]&База[[#This Row],[ 1-6]]&База[[#This Row],[№ действия]] -> Событие62№6действие14 | I187: =AND(VLOOKUP(База[[#This Row],[Уник]],Уникальные[],2,FALSE)<>0,VLOOKUP(База[[#This Row],[Уник]],Уникальные[],3,FALSE)<>0) -> FALSE
A188: 2016-03-14T07:11:28 | B188: 2016-03-14T19:31:15 | C188: Событие9 | D188: №1 | E188: действие13 | F188: 0.64 | G188: 18 | H188: =База[[#This Row],[№ события]]&База[[#This Row],[ 1-6]]&База[[#This Row],[№ действия]] -> Событие9№1действие13 | I188: =AND(VLOOKUP(База[[#This Row],[Уник]],Уникальные[],2,FALSE)<>0,VLOOKUP(База[[#This Row],[Уник]],Уникальные[],3,FALSE)<>0) -> FALSE
A189: 2016-03-14T07:18:27 | B189: 2016-03-14T19:37:36 | C189: Событие20 | D189: №3 | E189: действие2 | F189: 0.38 | G189: 14 | H189: =База[[#This Row],[№ события]]&База[[#This Row],[ 1-6]]&База[[#This Row],[№ действия]] -> Событие20№3действие2 | I189: =AND(VLOOKUP(База[[#This Row],[Уник]],Уникальные[],2,FALSE)<>0,VLOOKUP(База[[#This Row],[Уник]],Уникальные[],3,FALSE)<>0) -> FALSE
A190: 2016-03-14T07:12:56 | B190: 2016-03-14T19:38:54 | C190: Событие22 | D190: №5 | E190: действие31 | F190: 0.51 | G190: 7 | H190: =База[[#This Row],[№ события]]&База[[#This Row],[ 1-6]]&База[[#This Row],[№ действия]] -> Событие22№5действие31 | I190: =AND(VLOOKUP(База[[#This Row],[Уник]],Уникальные[],2,FALSE)<>0,VLOOKUP(База[[#This Row],[Уник]],Уникальные[],3,FALSE)<>0) -> FALSE
A191: 2016-03-14T07:14:08 | B191: 2016-03-14T12:41:23 | C191: Событие24 | D191: №1 | E191: действие2 | F191: 0.33 | G191: 20 | H191: =База[[#This Row],[№ события]]&База[[#This Row],[ 1-6]]&База[[#This Row],[№ действия]] -> Событие24№1действие2 | I191: =AND(VLOOKUP(База[[#This Row],[Уник]],Уникальные[],2,FALSE)<>0,VLOOKUP(База[[#This Row],[Уник]],Уникальные[],3,FALSE)<>0) -> FALSE
A192: 2016-03-14T07:32:16 | B192: 2016-03-14T14:19:08 | C192: Событие51 | D192: №1 | E192: действие58 | F192: 0.55 | G192: 23 | H192: =База[[#This Row],[№ события]]&База[[#This Row],[ 1-6]]&База[[#This Row],[№ действия]] -> Событие51№1действие58 | I192: =AND(VLOOKUP(База[[#This Row],[Уник]],Уникальные[],2,FALSE)<>0,VLOOKUP(База[[#This Row],[Уник]],Уникальные[],3,FALSE)<>0) -> FALSE
A193: 2016-03-14T07:32:25 | B193: 2016-03-14T14:19:18 | C193: Событие51 | D193: №2 | E193: действие59 | F193: 0.49 | G193: 16 | H193: =База[[#This Row],[№ события]]&База[[#This Row],[ 1-6]]&База[[#This Row],[№ действия]] -> Событие51№2действие59 | I193: =AND(VLOOKUP(База[[#This Row],[Уник]],Уникальные[],2,FALSE)<>0,VLOOKUP(База[[#This Row],[Уник]],Уникальные[],3,FALSE)<>0) -> FALSE
A194: 2016-03-14T07:37:55 | B194: 2016-03-14T07:37:55 | C194: Событие60 | D194: №5 | E194: действие29 | F194: 0.37 | G194: 7 | H194: =База[[#This Row],[№ события]]&База[[#This Row],[ 1-6]]&База[[#This Row],[№ действия]] -> Событие60№5действие29 | I194: =AND(VLOOKUP(База[[#This Row],[Уник]],Уникальные[],2,FALSE)<>0,VLOOKUP(База[[#This Row],[Уник]],Уникальные[],3,FALSE)<>0) -> FALSE
A195: 2016-03-14T08:08:03 | B195: 2016-03-14T11:58:12 | C195: Событие21 | D195: №6 | E195: действие28 | F195: 0.38 | G195: 20 | H195: =База[[#This Row],[№ события]]&База[[#This Row],[ 1-6]]&База[[#This Row],[№ действия]] -> Событие21№6действие28 | I195: =AND(VLOOKUP(База[[#This Row],[Уник]],Уникальные[],2,FALSE)<>0,VLOOKUP(База[[#This Row],[Уник]],Уникальные[],3,FALSE)<>0) -> FALSE
A196: 2016-03-14T08:10:48 | B196: 2016-03-14T19:40:58 | C196: Событие25 | D196: №4 | E196: действие20 | F196: 0.72 | G196: 7 | H196: =База[[#This Row],[№ события]]&База[[#This Row],[ 1-6]]&База[[#This Row],[№ действия]] -> Событие25№4действие20 | I196: =AND(VLOOKUP(База[[#This Row],[Уник]],Уникальные[],2,FALSE)<>0,VLOOKUP(База[[#This Row],[Уник]],Уникальные[],3,FALSE)<>0) -> FALSE
A197: 2016-03-14T08:41:48 | B197: 2016-03-14T14:40:55 | C197: Событие88 | D197: №4 | E197: действие53 | F197: 0.55 | G197: 9 | H197: =База[[#This Row],[№ события]]&База[[#This Row],[ 1-6]]&База[[#This Row],[№ действия]] -> Событие88№4действие53 | I197: =AND(VLOOKUP(База[[#This Row],[Уник]],Уникальные[],2,FALSE)<>0,VLOOKUP(База[[#This Row],[Уник]],Уникальные[],3,FALSE)<>0) -> FALSE
A198: 2016-03-14T08:46:11 | B198: 2016-03-14T08:46:11 | C198: Событие7 | D198: №5 | E198: действие10 | F198: 1 | G198: 7 | H198: =База[[#This Row],[№ события]]&База[[#This Row],[ 1-6]]&База[[#This Row],[№ действия]] -> Событие7№5действие10 | I198: =AND(VLOOKUP(База[[#This Row],[Уник]],Уникальные[],2,FALSE)<>0,VLOOKUP(База[[#This Row],[Уник]],Уникальные[],3,FALSE)<>0) -> FALSE
A199: 2016-03-14T09:01:24 | B199: 2016-03-14T19:44:39 | C199: Событие31 | D199: №2 | E199: действие39 | F199: 0.79 | G199: 7 | H199: =База[[#This Row],[№ события]]&База[[#This Row],[ 1-6]]&База[[#This Row],[№ действия]] -> Событие31№2действие39 | I199: =AND(VLOOKUP(База[[#This Row],[Уник]],Уникальные[],2,FALSE)<>0,VLOOKUP(База[[#This Row],[Уник]],Уникальные[],3,FALSE)<>0) -> FALSE
A200: 2016-03-14T09:10:40 | B200: 2016-03-14T19:17:07 | C200: Событие59 | D200: №5 | E200: действие29 | F200: 0.47 | G200: 8 | H200: =База[[#This Row],[№ события]]&База[[#This Row],[ 1-6]]&База[[#This Row],[№ действия]] -> Событие59№5действие29 | I200: =AND(VLOOKUP(База[[#This Row],[Уник]],Уникальные[],2,FALSE)<>0,VLOOKUP(База[[#This Row],[Уник]],Уникальные[],3,FALSE)<>0) -> FALSE
A201: 2016-03-14T09:13:35 | B201: 2016-03-14T19:20:18 | C201: Событие64 | D201: №1 | E201: действие69 | F201: 0.6 | G201: 10 | H201: =База[[#This Row],[№ события]]&База[[#This Row],[ 1-6]]&База[[#This Row],[№ действия]] -> Событие64№1действие69 | I201: =AND(VLOOKUP(База[[#This Row],[Уник]],Уникальные[],2,FALSE)<>0,VLOOKUP(База[[#This Row],[Уник]],Уникальные[],3,FALSE)<>0) -> FALSE
... 346 more rows

Sheet Уникальные
A1: Уник | B1: От | C1: до
A2: Событие1№3действие1 | B2: 17:22:26 | C2: 18:08:24
A3: Событие2№3действие2
A4: Событие3№1действие3
A5: Событие3№2действие4
A6: Событие4№2действие5
A7: Событие4№3действие6
A8: Событие4№6действие7
A9: Событие5№5действие8
A10: Событие5№6действие9
A11: Событие6№5действие10
A12: Событие7№6действие11
A13: Событие8№1действие12
A14: Событие9№1действие13
A15: Событие9№6действие14
A16: Событие10№6действие15
A17: Событие11№6действие16
A18: Событие12№1действие17
A19: Событие12№6действие18
A20: Событие13№3действие19
A21: Событие14№1действие20
A22: Событие14№6действие13
A23: Событие15№4действие21
A24: Событие15№5действие11
A25: Событие16№5действие22
A26: Событие17№3действие23
A27: Событие18№5действие24
A28: Событие18№6действие25
A29: Событие19№3действие26
A30: Событие19№6действие27
A31: Событие20№3действие2
A32: Событие20№6действие16
A33: Событие21№6действие28
A34: Событие22№3действие29
A35: Событие22№4действие30
A36: Событие22№5действие31
A37: Событие23№3действие17
A38: Событие23№4действие32
A39: Событие24№3действие17
A40: Событие24№4действие32
A41: Событие25№3действие33
A42: Событие25№4действие20
A43: Событие26№1действие34
A44: Событие27№1действие35
A45: Событие27№6действие6
A46: Событие28№3действие30
A47: Событие29№1действие36
A48: Событие29№2действие18
A49: Событие29№6действие37
A50: Событие30№5действие36
A51: Событие30№6действие38
A52: Событие31№2действие39
A53: Событие31№4действие40
A54: Событие32№3действие29
A55: Событие32№5действие13
A56: Событие33№1действие41
A57: Событие33№4действие42
A58: Событие34№1действие34
A59: Событие35№5действие43
A60: Событие36№5действие36
A61: Событие37№1действие44
A62: Событие37№2действие36
A63: Событие37№3действие45
A64: Событие37№5действие46
A65: Событие38№3действие22
A66: Событие38№4действие47
A67: Событие39№2действие48
A68: Событие40№2действие49
A69: Событие40№3действие8
A70: Событие41№2действие21
A71: Событие42№2действие50
A72: Событие43№1действие38
A73: Событие43№3действие24
A74: Событие43№4действие51
A75: Событие43№6действие52
A76: Событие44№2действие6
A77: Событие45№1действие53
A78: Событие45№2действие43
A79: Событие45№3действие54
A80: Событие46№3действие51
A81: Событие46№5действие7
A82: Событие47№2действие55
A83: Событие48№2действие56
A84: Событие48№4действие24
A85: Событие48№5действие13
A86: Событие49№3действие57
A87: Событие49№5действие58
A88: Событие50№1действие58
A89: Событие50№2действие59
A90: Событие51№5действие25
A91: Событие52№1действие60
A92: Событие52№3действие52
A93: Событие52№4действие61
A94: Событие52№5действие4
A95: Событие53№5действие17
A96: Событие54№1действие62
A97: Событие54№2действие60
A98: Событие54№4действие63
A99: Событие54№5действие64
A100: Событие55№1действие65
A101: Событие55№2действие8
A102: Событие56№4действие22
A103: Событие57№2действие66
A104: Событие58№3действие4
A105: Событие59№5действие29
A106: Событие60№2действие65
A107: Событие60№3действие57
A108: Событие61№2действие25
A109: Событие61№3действие61
A110: Событие62№2действие67
A111: Событие62№6действие14
A112: Событие63№6действие68
A113: Событие64№1действие69
A114: Событие64№5действие45
A115: Событие64№6действие70
A116: Событие65№1действие71
A117: Событие66№4действие72
A118: Событие67№3действие73
A119: Событие68№3действие42
A120: Событие69№4действие69
A121: Событие70№1действие74
A122: Событие71№3действие57
A123: Событие71№4действие4
A124: Событие72№1действие49
A125: Событие73№4действие75
A126: Событие74№3действие76
A127: Событие75№1действие77
A128: Событие75№5действие41
A129: Событие76№3действие13
A130: Событие77№6действие39
A131: Событие78№5действие34
A132: Событие79№6действие59
A133: Событие80№2действие78
A134: Событие80№3действие79
A135: Событие81№5действие80
A136: Событие82№5действие65
A137: Событие83№2действие10
A138: Событие83№4действие38
A139: Событие83№6действие6
A140: Событие84№2действие53
A141: Событие85№2действие65
A142: Событие85№3действие81
A143: Событие85№4действие82
A144: Событие86№2действие5
A145: Событие87№6действие59
A146: Событие88№1действие64
A147: Событие88№2действие83
A148: Событие88№4действие53
A149: Событие1№4действие79
A150: Событие24№1действие2
A151: Событие70№5действие80
A152: Событие51№1действие58
A153: Событие51№2действие59
A154: Событие60№5действие29
A155: Событие7№5действие10
A156: Событие1№1действие64
A157: Событие1№2действие83
A158: Событие1№4действие53
A159: Событие59№2действие66
A160: Событие65№1действие69
A161: Событие65№5действие45
A162: Событие65№6действие70
A163: Событие68№3действие73
A164: Событие76№1действие77
A165: Событие76№5действие41
A166: Событие13№1действие17
A167: Событие13№6действие18
A168: Событие29№3действие30
A169: Событие54№5действие17
A170: Событие45№2действие6
A171: Событие37№3действие82
A172: Событие55№1действие62
A173: Событие55№2действие60
A174: Событие55№4действие63
A175: Событие55№5действие64
A176: Событие23№3действие29
A177: Событие23№4действие30
A178: Событие23№5действие31
A179: Событие63№2действие67
A180: Событие63№6действие14
A181: Событие14№3действие19
A182: Событие17№5действие22
A183: Событие42№3действие69
A184: Событие3№1действие21
A185: Событие30№2действие52
A186: Событие37№5действие36
A187: Событие77№4действие69
A188: Событие49№2действие59
A189: Событие57№1действие43
A190: Событие83№5действие84
A191: Событие37№2действие25
A192: Событие37№4действие46
A193: Событие37№5действие78
A194: Событие45№2действие65
A195: Событие42№2действие79
A196: Событие53№4действие58
A197: Событие17№1действие85
A198: Событие20№6действие24
A199: Событие78№6действие39
A200: Событие80№2действие13
... 3 more rows

Sheet Варианты
A1: Стандартные
A2: Проводка ремонта | B2: 50% | C2: 10 | D2: % падает без повышения ремонтов
B3: =(B2*100-C2+A3*10)/100 -> 0.4 | C3: =C2+A3 -> 10
B4: =(B3*100-C3+A4*10)/100 -> 0.3 | C4: =C3+A4 -> 10
B5: =(B4*100-C4+A5*10)/100 -> 0.2 | C5: =C4+A5 -> 10
A7: Проводка ремонта | B7: 50% | C7: 10 | D7: % падает с повышением ремонтов
B8: =(B7*100-C7+A8*10)/100 -> 0.4 | C8: =C7+A8 -> 10
A9: 1 | B9: =(B8*100-C8+A9*10)/100 -> 0.4 | C9: =C8+A9 -> 11
B10: =(B9*100-C9+A10*10)/100 -> 0.29 | C10: =C9+A10 -> 11
A12: Нестандартные
A13: Проводка ремонта | B13: 50% | C13: 10 | D13: повышение ремонтов производится несколько раз за день, затем падает
A14: 1 | B14: =B13+Пример167[[#This Row],[Проводка ремонта]]*10/100 -> 0.6 | C14: =C13+A14 -> 11
A15: 2 | B15: =B14+Пример167[[#This Row],[Проводка ремонта]]*10/100 -> 0.8 | C15: =C14+A15 -> 13
B16: =(B15*100-Пример167[[#This Row],[10]])/100 -> 0.67 | C16: =C15+A16 -> 13
A18: Проводка ремонта | B18: 50% | C18: 10 | D18: повышение ремонтов производится несколько раз за день, затем падает(только в лог не попадает второго повышения)
A19: 1 | B19: =B18+Пример1678[[#This Row],[Проводка ремонта]]*10/100 -> 0.6 | C19: =C18+A19 -> 11
A20: 2 | B20: =B19+Пример1678[[#This Row],[Проводка ремонта]]*10/100 -> 0.8 | C20: =C19+A20 -> 13
B21: =(B20*100-Пример1678[[#This Row],[10]])/100 -> 0.67 | C21: =C20+A21 -> 13
